{"text_format":"1","workbook":"xlsx","n_sheets":3,"sheets":["bordereau","bordereau2","Explication du contenu"],"not_rendered":{"charts":0,"images":2,"macros":1,"external_links":0,"defined_names":0,"comments":0,"pivot_tables":0},"unopened":[],"bounds":{"document_bytes":16777216,"sheet_cells":100000,"rows_first":2000,"rows_last":500,"rows_between":2000,"halvings":0,"cell_chars":16384,"cell_head_chars":4096},"cells_cut":0,"cells_raw":0,"read":"whole","date_system":"1900"}

{"sheet":"bordereau","index":0,"n_rows":28,"n_cols":37,"rows_kept":28,"cut":false,"hidden":false,"merged":[[6,4,7,5],[2,2,2,4],[6,1,7,2]]}
[null,null,null,null,null,null,null,null,null,"immédiat","2 ans","D",null,null,null,null,null,null,null,null,null,null,null,null,null,null,null,null,null,null,null,null,null,null,"immédiat","2 ans","D"]
[null,null,null,null,null,null,null,null,null,"30 ans","5 ans","C",null,null,null,null,null,null,null,null,null,null,null,null,null,null,null,null,null,null,null,null,null,null,"30 ans","5 ans","C"]
[null,null,"Bordereau de versement",null,null,null,null,null,null,null,null,null,null,null,null,null,null,null,null,null,null,null,null,null,null,null,null,null,null,null,null,null,null,null,"60 ans","10 ans","T"]
[null,null,null,null,null,null,null,null,null,null,null,null,null,null,null,null,null,null,null,null,null,null,null,null,null,null,null,null,null,null,null,null,null,null,"100 ans","20 ans"]
[null,null,null,null,null,null,null,null,null,null,null,null,null,null,null,null,null,null,null,null,null,null,null,null,null,null,null,null,null,null,null,null,null,null,"120 ans","30 ans"]
[null," ",null,null,null,null,null,null,null,"60 ans","10 ans","T",null,null,null,null,null,null,null,null,null,null,null,null,null,null,null,null,null,null,null,null,null,null,"150 ans","40 ans"]
[null,"Partie réservée au service versant",null,null,"Partie réservée aux Archives",null,null,null,null,"100 ans","20 ans",null,null,null,null,null,null,null,null,null,null,null,null,null,null,null,null,null,null,null,null,null,null,null,null,"50 ans"]
[null,null,null,null,null,null,null,null,null,"120 ans","30 ans"]
[null,"Administration",null,null,"N° de versement",null,null,null,null,"150 ans","40 ans"]
[null,"Direction Gén.",null,null,"Statut du service versant",null,null,null,null,null,"50 ans"]
[null,"Direction"]
[null,"Service"]
[null,"Bureau"]
[null,"Cellule/Unité"]
[null,"niveau 7"]
[null,"niveau 8"]
[null,"niveau 9"]
[null,"niveau 10"]
[null,"Adresse",null,null,"Date de prise en charge"]
[null,"Téléphone",null,null,"Métrage linéaire (ml)"]
[null,"Courriel",null,null,"Localisation"]
[null,"Date du versement",null,null,"La Direction des Archives"]
[null,"Nombre d’articles (boîtes, registres...)"]
[null,"Types de boîtes",""]
[null,"Description sommaire"]
[null,"Dates extrêmes",{"$f":"IF(ISBLANK(bordereau2!B6),\"\",MIN(bordereau2!H6:H1206) & \" - \" &  MAX(bordereau2!I6:I1206))","v":""}]
[null,"Nom du responsable"]
[null,"Le chef du service versant"]

{"sheet":"bordereau2","index":1,"n_rows":1206,"n_cols":31,"rows_kept":1206,"cut":false,"hidden":false,"merged":[[0,0,4,0],[0,1,4,1],[0,2,4,2],[0,6,4,6],[0,7,4,8],[0,3,4,3],[0,4,4,4],[0,5,4,5],[0,19,4,19],[0,9,0,11],[1,9,4,9],[1,11,4,11],[0,20,4,20],[0,16,4,16],[0,17,4,17],[0,18,4,18],[1,10,4,10],[0,12,0,15],[1,15,4,15],[1,13,4,13],[1,12,4,12],[1,14,4,14]]}
["Niveau","N°\nDébut\n(1)\n","N°\nFin\n\n(1)\n","Articles\nisolés","Classification","Sous-Classification","Description","Dates\nextrêmes\n\n(3)\nDébut      Fin",null,"Communicabilité",null,null,"Traitement",null,null,null,"Observations\n\n\n(9)","N°\nTG\n\n(10)","Durée de classification","Depuis le\n\n","Jusqu'au",null,null,null,null,null,"immédiat","2 ans","D",null,"10 ans"]
[null,null,null,null,null,null,null,null,null,"Délai\n\n(5)","Depuis le","Jusqu'au\n\n(6)","D.U.A","Depuis le\n\n(7)","Jusqu'au","sort final\n(8)",null,null,null,null,null,null,null,null,null,null,"3 ans","5 ans","C","Niveau 1","50 ans"]
[null,null,null,null,null,null,null,null,null,null,null,null,null,null,null,null,null,null,null,null,null,null,null,null,null,null,"5 ans","10 ans","T","Niveau 2","100 ans"]
[null,null,null,null,null,null,null,null,null,null,null,null,null,null,null,null,null,null,null,null,null,null,null,null,null,null,"10 ans","20 ans",null,"Niveau 3"]
[null,null,null,null,null,null,null,null,null,null,null,null,null,null,null,null,null,null,null,null,null,null,null,null,null,null,"25 ans","30 ans",null,"Niveau 4"]
[null,null,null,null,null,null,null,null,null,null,null,{"$f":"CalculeDelai(B6, K6, J6)","v":""},null,null,{"$f":"CalculeDUA(B6, N6, M6)","v":""},null,null,null,null,null,{"$f":"CalculeDureeClassif(B6, T6, S6)","v":""},null,null,null,null,null,"30 ans","40 ans",null,"Niveau 5"]
[null,null,null,null,null,null,null,null,null,null,null,"",null,null,"",null,null,null,null,null,"",null,null,null,null,null,"50 ans","50 ans",null,"Niveau 6"]
[null,null,null,null,null,null,null,null,null,null,null,"",null,null,"",null,null,null,null,null,"",null,null,null,null,null,"60 ans",null,null,"Niveau 7"]
[null,null,null,null,null,null,null,null,null,null,null,"",null,null,"",null,null,null,null,null,"",null,null,null,null,null,"75 ans",null,null,"Niveau 8"]
[null,null,null,null,null,null,null,null,null,null,null,"",null,null,"",null,null,null,null,null,"",null,null,null,null,null,"100 ans",null,null,"Niveau 9"]
[null,null,null,null,null,null,null,null,null,null,null,"",null,null,"",null,null,null,null,null,"",null,null,null,null,null,"120 ans"]
[null,null,null,null,null,null,null,null,null,null,null,"",null,null,"",null,null,null,null,null,"",null,null,null,null,null,"150 ans"]
[null,null,null,null,null,null,null,null,null,null,null,"",null,null,"",null,null,null,null,null,"",null,null,null,null,null,"permanente"]
[null,null,null,null,null,null,null,null,null,null,null,"",null,null,"",null,null,null,null,null,""]
[null,null,null,null,null,null,null,null,null,null,null,"",null,null,"",null,null,null,null,null,""]
[null,null,null,null,null,null,null,null,null,null,null,"",null,null,"",null,null,null,null,null,""]
[null,null,null,null,null,null,null,null,null,null,null,"",null,null,"",null,null,null,null,null,""]
[null,null,null,null,null,null,null,null,null,null,null,"",null,null,"",null,null,null,null,null,""]
[null,null,null,null,null,null,null,null,null,null,null,"",null,null,"",null,null,null,null,null,""]
[null,null,null,null,null,null,null,null,null,null,null,"",null,null,"",null,null,null,null,null,""]
[null,null,null,null,null,null,null,null,null,null,null,"",null,null,"",null,null,null,null,null,""]
[null,null,null,null,null,null,null,null,null,null,null,"",null,null,"",null,null,null,null,null,""]
[null,null,null,null,null,null,null,null,null,null,null,"",null,null,"",null,null,null,null,null,""]
[null,null,null,null,null,null,null,null,null,null,null,"",null,null,"",null,null,null,null,null,""]
[null,null,null,null,null,null,null,null,null,null,null,"",null,null,"",null,null,null,null,null,""]
[null,null,null,null,null,null,null,null,null,null,null,"",null,null,"",null,null,null,null,null,""]
[null,null,null,null,null,null,null,null,null,null,null,"",null,null,"",null,null,null,null,null,""]
[null,null,null,null,null,null,null,null,null,null,null,"",null,null,"",null,null,null,null,null,""]
[null,null,null,null,null,null,null,null,null,null,null,"",null,null,"",null,null,null,null,null,""]
[null,null,null,null,null,null,null,null,null,null,null,"",null,null,"",null,null,null,null,null,""]
[null,null,null,null,null,null,null,null,null,null,null,"",null,null,"",null,null,null,null,null,""]
[null,null,null,null,null,null,null,null,null,null,null,"",null,null,"",null,null,null,null,null,""]
[null,null,null,null,null,null,null,null,null,null,null,"",null,null,"",null,null,null,null,null,""]
[null,null,null,null,null,null,null,null,null,null,null,"",null,null,"",null,null,null,null,null,""]
[null,null,null,null,null,null,null,null,null,null,null,"",null,null,"",null,null,null,null,null,""]
[null,null,null,null,null,null,null,null,null,null,null,"",null,null,"",null,null,null,null,null,""]
[null,null,null,null,null,null,null,null,null,null,null,"",null,null,"",null,null,null,null,null,""]
[null,null,null,null,null,null,null,null,null,null,null,"",null,null,"",null,null,null,null,null,""]
[null,null,null,null,null,null,null,null,null,null,null,"",null,null,"",null,null,null,null,null,""]
[null,null,null,null,null,null,null,null,null,null,null,"",null,null,"",null,null,null,null,null,""]
[null,null,null,null,null,null,null,null,null,null,null,"",null,null,"",null,null,null,null,null,""]
[null,null,null,null,null,null,null,null,null,null,null,"",null,null,"",null,null,null,null,null,""]
[null,null,null,null,null,null,null,null,null,null,null,"",null,null,"",null,null,null,null,null,""]
[null,null,null,null,null,null,null,null,null,null,null,"",null,null,"",null,null,null,null,null,""]
[null,null,null,null,null,null,null,null,null,null,null,"",null,null,"",null,null,null,null,null,""]
[null,null,null,null,null,null,null,null,null,null,null,"",null,null,"",null,null,null,null,null,""]
[null,null,null,null,null,null,null,null,null,null,null,"",null,null,"",null,null,null,null,null,""]
[null,null,null,null,null,null,null,null,null,null,null,"",null,null,"",null,null,null,null,null,""]
[null,null,null,null,null,null,null,null,null,null,null,"",null,null,"",null,null,null,null,null,""]
[null,null,null,null,null,null,null,null,null,null,null,"",null,null,"",null,null,null,null,null,""]
[null,null,null,null,null,null,null,null,null,null,null,"",null,null,"",null,null,null,null,null,""]
[null,null,null,null,null,null,null,null,null,null,null,"",null,null,"",null,null,null,null,null,""]
[null,null,null,null,null,null,null,null,null,null,null,"",null,null,"",null,null,null,null,null,""]
[null,null,null,null,null,null,null,null,null,null,null,"",null,null,"",null,null,null,null,null,""]
[null,null,null,null,null,null,null,null,null,null,null,"",null,null,"",null,null,null,null,null,""]
[null,null,null,null,null,null,null,null,null,null,null,"",null,null,"",null,null,null,null,null,""]
[null,null,null,null,null,null,null,null,null,null,null,"",null,null,"",null,null,null,null,null,""]
[null,null,null,null,null,null,null,null,null,null,null,"",null,null,"",null,null,null,null,null,""]
[null,null,null,null,null,null,null,null,null,null,null,"",null,null,"",null,null,null,null,null,""]
[null,null,null,null,null,null,null,null,null,null,null,"",null,null,"",null,null,null,null,null,""]
[null,null,null,null,null,null,null,null,null,null,null,"",null,null,"",null,null,null,null,null,""]
[null,null,null,null,null,null,null,null,null,null,null,"",null,null,"",null,null,null,null,null,""]
[null,null,null,null,null,null,null,null,null,null,null,"",null,null,"",null,null,null,null,null,""]
[null,null,null,null,null,null,null,null,null,null,null,"",null,null,"",null,null,null,null,null,""]
[null,null,null,null,null,null,null,null,null,null,null,"",null,null,"",null,null,null,null,null,""]
[null,null,null,null,null,null,null,null,null,null,null,"",null,null,"",null,null,null,null,null,""]
[null,null,null,null,null,null,null,null,null,null,null,"",null,null,"",null,null,null,null,null,""]
[null,null,null,null,null,null,null,null,null,null,null,"",null,null,"",null,null,null,null,null,""]
[null,null,null,null,null,null,null,null,null,null,null,"",null,null,"",null,null,null,null,null,""]
[null,null,null,null,null,null,null,null,null,null,null,{"$f":"CalculeDelai(B70, K70, J70)","v":""},null,null,{"$f":"CalculeDUA(B70, N70, M70)","v":""},null,null,null,null,null,{"$f":"CalculeDureeClassif(B70, T70, S70)","v":""}]
[null,null,null,null,null,null,null,null,null,null,null,"",null,null,"",null,null,null,null,null,""]
[null,null,null,null,null,null,null,null,null,null,null,"",null,null,"",null,null,null,null,null,""]
[null,null,null,null,null,null,null,null,null,null,null,"",null,null,"",null,null,null,null,null,""]
[null,null,null,null,null,null,null,null,null,null,null,"",null,null,"",null,null,null,null,null,""]
[null,null,null,null,null,null,null,null,null,null,null,"",null,null,"",null,null,null,null,null,""]
[null,null,null,null,null,null,null,null,null,null,null,"",null,null,"",null,null,null,null,null,""]
[null,null,null,null,null,null,null,null,null,null,null,"",null,null,"",null,null,null,null,null,""]
[null,null,null,null,null,null,null,null,null,null,null,"",null,null,"",null,null,null,null,null,""]
[null,null,null,null,null,null,null,null,null,null,null,"",null,null,"",null,null,null,null,null,""]
[null,null,null,null,null,null,null,null,null,null,null,"",null,null,"",null,null,null,null,null,""]
[null,null,null,null,null,null,null,null,null,null,null,"",null,null,"",null,null,null,null,null,""]
[null,null,null,null,null,null,null,null,null,null,null,"",null,null,"",null,null,null,null,null,""]
[null,null,null,null,null,null,null,null,null,null,null,"",null,null,"",null,null,null,null,null,""]
[null,null,null,null,null,null,null,null,null,null,null,"",null,null,"",null,null,null,null,null,""]
[null,null,null,null,null,null,null,null,null,null,null,"",null,null,"",null,null,null,null,null,""]
[null,null,null,null,null,null,null,null,null,null,null,"",null,null,"",null,null,null,null,null,""]
[null,null,null,null,null,null,null,null,null,null,null,"",null,null,"",null,null,null,null,null,""]
[null,null,null,null,null,null,null,null,null,null,null,"",null,null,"",null,null,null,null,null,""]
[null,null,null,null,null,null,null,null,null,null,null,"",null,null,"",null,null,null,null,null,""]
[null,null,null,null,null,null,null,null,null,null,null,"",null,null,"",null,null,null,null,null,""]
[null,null,null,null,null,null,null,null,null,null,null,"",null,null,"",null,null,null,null,null,""]
[null,null,null,null,null,null,null,null,null,null,null,"",null,null,"",null,null,null,null,null,""]
[null,null,null,null,null,null,null,null,null,null,null,"",null,null,"",null,null,null,null,null,""]
[null,null,null,null,null,null,null,null,null,null,null,"",null,null,"",null,null,null,null,null,""]
[null,null,null,null,null,null,null,null,null,null,null,"",null,null,"",null,null,null,null,null,""]
[null,null,null,null,null,null,null,null,null,null,null,"",null,null,"",null,null,null,null,null,""]
[null,null,null,null,null,null,null,null,null,null,null,"",null,null,"",null,null,null,null,null,""]
[null,null,null,null,null,null,null,null,null,null,null,"",null,null,"",null,null,null,null,null,""]
[null,null,null,null,null,null,null,null,null,null,null,"",null,null,"",null,null,null,null,null,""]
[null,null,null,null,null,null,null,null,null,null,null,"",null,null,"",null,null,null,null,null,""]
[null,null,null,null,null,null,null,null,null,null,null,"",null,null,"",null,null,null,null,null,""]
[null,null,null,null,null,null,null,null,null,null,null,"",null,null,"",null,null,null,null,null,""]
[null,null,null,null,null,null,null,null,null,null,null,"",null,null,"",null,null,null,null,null,""]
[null,null,null,null,null,null,null,null,null,null,null,"",null,null,"",null,null,null,null,null,""]
[null,null,null,null,null,null,null,null,null,null,null,"",null,null,"",null,null,null,null,null,""]
[null,null,null,null,null,null,null,null,null,null,null,"",null,null,"",null,null,null,null,null,""]
[null,null,null,null,null,null,null,null,null,null,null,"",null,null,"",null,null,null,null,null,""]
[null,null,null,null,null,null,null,null,null,null,null,"",null,null,"",null,null,null,null,null,""]
[null,null,null,null,null,null,null,null,null,null,null,"",null,null,"",null,null,null,null,null,""]
[null,null,null,null,null,null,null,null,null,null,null,"",null,null,"",null,null,null,null,null,""]
[null,null,null,null,null,null,null,null,null,null,null,"",null,null,"",null,null,null,null,null,""]
[null,null,null,null,null,null,null,null,null,null,null,"",null,null,"",null,null,null,null,null,""]
[null,null,null,null,null,null,null,null,null,null,null,"",null,null,"",null,null,null,null,null,""]
[null,null,null,null,null,null,null,null,null,null,null,"",null,null,"",null,null,null,null,null,""]
[null,null,null,null,null,null,null,null,null,null,null,"",null,null,"",null,null,null,null,null,""]
[null,null,null,null,null,null,null,null,null,null,null,"",null,null,"",null,null,null,null,null,""]
[null,null,null,null,null,null,null,null,null,null,null,"",null,null,"",null,null,null,null,null,""]
[null,null,null,null,null,null,null,null,null,null,null,"",null,null,"",null,null,null,null,null,""]
[null,null,null,null,null,null,null,null,null,null,null,"",null,null,"",null,null,null,null,null,""]
[null,null,null,null,null,null,null,null,null,null,null,"",null,null,"",null,null,null,null,null,""]
[null,null,null,null,null,null,null,null,null,null,null,"",null,null,"",null,null,null,null,null,""]
[null,null,null,null,null,null,null,null,null,null,null,"",null,null,"",null,null,null,null,null,""]
[null,null,null,null,null,null,null,null,null,null,null,"",null,null,"",null,null,null,null,null,""]
[null,null,null,null,null,null,null,null,null,null,null,"",null,null,"",null,null,null,null,null,""]
[null,null,null,null,null,null,null,null,null,null,null,"",null,null,"",null,null,null,null,null,""]
[null,null,null,null,null,null,null,null,null,null,null,"",null,null,"",null,null,null,null,null,""]
[null,null,null,null,null,null,null,null,null,null,null,"",null,null,"",null,null,null,null,null,""]
[null,null,null,null,null,null,null,null,null,null,null,"",null,null,"",null,null,null,null,null,""]
[null,null,null,null,null,null,null,null,null,null,null,"",null,null,"",null,null,null,null,null,""]
[null,null,null,null,null,null,null,null,null,null,null,"",null,null,"",null,null,null,null,null,""]
[null,null,null,null,null,null,null,null,null,null,null,"",null,null,"",null,null,null,null,null,""]
[null,null,null,null,null,null,null,null,null,null,null,"",null,null,"",null,null,null,null,null,""]
[null,null,null,null,null,null,null,null,null,null,null,"",null,null,"",null,null,null,null,null,""]
[null,null,null,null,null,null,null,null,null,null,null,{"$f":"CalculeDelai(B134, K134, J134)","v":""},null,null,{"$f":"CalculeDUA(B134, N134, M134)","v":""},null,null,null,null,null,{"$f":"CalculeDureeClassif(B134, T134, S134)","v":""}]
[null,null,null,null,null,null,null,null,null,null,null,"",null,null,"",null,null,null,null,null,""]
[null,null,null,null,null,null,null,null,null,null,null,"",null,null,"",null,null,null,null,null,""]
[null,null,null,null,null,null,null,null,null,null,null,"",null,null,"",null,null,null,null,null,""]
[null,null,null,null,null,null,null,null,null,null,null,"",null,null,"",null,null,null,null,null,""]
[null,null,null,null,null,null,null,null,null,null,null,"",null,null,"",null,null,null,null,null,""]
[null,null,null,null,null,null,null,null,null,null,null,"",null,null,"",null,null,null,null,null,""]
[null,null,null,null,null,null,null,null,null,null,null,"",null,null,"",null,null,null,null,null,""]
[null,null,null,null,null,null,null,null,null,null,null,"",null,null,"",null,null,null,null,null,""]
[null,null,null,null,null,null,null,null,null,null,null,"",null,null,"",null,null,null,null,null,""]
[null,null,null,null,null,null,null,null,null,null,null,"",null,null,"",null,null,null,null,null,""]
[null,null,null,null,null,null,null,null,null,null,null,"",null,null,"",null,null,null,null,null,""]
[null,null,null,null,null,null,null,null,null,null,null,"",null,null,"",null,null,null,null,null,""]
[null,null,null,null,null,null,null,null,null,null,null,"",null,null,"",null,null,null,null,null,""]
[null,null,null,null,null,null,null,null,null,null,null,"",null,null,"",null,null,null,null,null,""]
[null,null,null,null,null,null,null,null,null,null,null,"",null,null,"",null,null,null,null,null,""]
[null,null,null,null,null,null,null,null,null,null,null,"",null,null,"",null,null,null,null,null,""]
[null,null,null,null,null,null,null,null,null,null,null,"",null,null,"",null,null,null,null,null,""]
[null,null,null,null,null,null,null,null,null,null,null,"",null,null,"",null,null,null,null,null,""]
[null,null,null,null,null,null,null,null,null,null,null,"",null,null,"",null,null,null,null,null,""]
[null,null,null,null,null,null,null,null,null,null,null,"",null,null,"",null,null,null,null,null,""]
[null,null,null,null,null,null,null,null,null,null,null,"",null,null,"",null,null,null,null,null,""]
[null,null,null,null,null,null,null,null,null,null,null,"",null,null,"",null,null,null,null,null,""]
[null,null,null,null,null,null,null,null,null,null,null,"",null,null,"",null,null,null,null,null,""]
[null,null,null,null,null,null,null,null,null,null,null,"",null,null,"",null,null,null,null,null,""]
[null,null,null,null,null,null,null,null,null,null,null,"",null,null,"",null,null,null,null,null,""]
[null,null,null,null,null,null,null,null,null,null,null,"",null,null,"",null,null,null,null,null,""]
[null,null,null,null,null,null,null,null,null,null,null,"",null,null,"",null,null,null,null,null,""]
[null,null,null,null,null,null,null,null,null,null,null,"",null,null,"",null,null,null,null,null,""]
[null,null,null,null,null,null,null,null,null,null,null,"",null,null,"",null,null,null,null,null,""]
[null,null,null,null,null,null,null,null,null,null,null,"",null,null,"",null,null,null,null,null,""]
[null,null,null,null,null,null,null,null,null,null,null,"",null,null,"",null,null,null,null,null,""]
[null,null,null,null,null,null,null,null,null,null,null,"",null,null,"",null,null,null,null,null,""]
[null,null,null,null,null,null,null,null,null,null,null,"",null,null,"",null,null,null,null,null,""]
[null,null,null,null,null,null,null,null,null,null,null,"",null,null,"",null,null,null,null,null,""]
[null,null,null,null,null,null,null,null,null,null,null,"",null,null,"",null,null,null,null,null,""]
[null,null,null,null,null,null,null,null,null,null,null,"",null,null,"",null,null,null,null,null,""]
[null,null,null,null,null,null,null,null,null,null,null,"",null,null,"",null,null,null,null,null,""]
[null,null,null,null,null,null,null,null,null,null,null,"",null,null,"",null,null,null,null,null,""]
[null,null,null,null,null,null,null,null,null,null,null,"",null,null,"",null,null,null,null,null,""]
[null,null,null,null,null,null,null,null,null,null,null,"",null,null,"",null,null,null,null,null,""]
[null,null,null,null,null,null,null,null,null,null,null,"",null,null,"",null,null,null,null,null,""]
[null,null,null,null,null,null,null,null,null,null,null,"",null,null,"",null,null,null,null,null,""]
[null,null,null,null,null,null,null,null,null,null,null,"",null,null,"",null,null,null,null,null,""]
[null,null,null,null,null,null,null,null,null,null,null,"",null,null,"",null,null,null,null,null,""]
[null,null,null,null,null,null,null,null,null,null,null,"",null,null,"",null,null,null,null,null,""]
[null,null,null,null,null,null,null,null,null,null,null,"",null,null,"",null,null,null,null,null,""]
[null,null,null,null,null,null,null,null,null,null,null,"",null,null,"",null,null,null,null,null,""]
[null,null,null,null,null,null,null,null,null,null,null,"",null,null,"",null,null,null,null,null,""]
[null,null,null,null,null,null,null,null,null,null,null,"",null,null,"",null,null,null,null,null,""]
[null,null,null,null,null,null,null,null,null,null,null,"",null,null,"",null,null,null,null,null,""]
[null,null,null,null,null,null,null,null,null,null,null,"",null,null,"",null,null,null,null,null,""]
[null,null,null,null,null,null,null,null,null,null,null,"",null,null,"",null,null,null,null,null,""]
[null,null,null,null,null,null,null,null,null,null,null,"",null,null,"",null,null,null,null,null,""]
[null,null,null,null,null,null,null,null,null,null,null,"",null,null,"",null,null,null,null,null,""]
[null,null,null,null,null,null,null,null,null,null,null,"",null,null,"",null,null,null,null,null,""]
[null,null,null,null,null,null,null,null,null,null,null,"",null,null,"",null,null,null,null,null,""]
[null,null,null,null,null,null,null,null,null,null,null,"",null,null,"",null,null,null,null,null,""]
[null,null,null,null,null,null,null,null,null,null,null,"",null,null,"",null,null,null,null,null,""]
[null,null,null,null,null,null,null,null,null,null,null,"",null,null,"",null,null,null,null,null,""]
[null,null,null,null,null,null,null,null,null,null,null,"",null,null,"",null,null,null,null,null,""]
[null,null,null,null,null,null,null,null,null,null,null,"",null,null,"",null,null,null,null,null,""]
[null,null,null,null,null,null,null,null,null,null,null,"",null,null,"",null,null,null,null,null,""]
[null,null,null,null,null,null,null,null,null,null,null,"",null,null,"",null,null,null,null,null,""]
[null,null,null,null,null,null,null,null,null,null,null,{"$f":"CalculeDelai(B198, K198, J198)","v":""},null,null,{"$f":"CalculeDUA(B198, N198, M198)","v":""},null,null,null,null,null,{"$f":"CalculeDureeClassif(B198, T198, S198)","v":""}]
[null,null,null,null,null,null,null,null,null,null,null,"",null,null,"",null,null,null,null,null,""]
[null,null,null,null,null,null,null,null,null,null,null,"",null,null,"",null,null,null,null,null,""]
[null,null,null,null,null,null,null,null,null,null,null,"",null,null,"",null,null,null,null,null,""]
[null,null,null,null,null,null,null,null,null,null,null,"",null,null,"",null,null,null,null,null,""]
[null,null,null,null,null,null,null,null,null,null,null,"",null,null,"",null,null,null,null,null,""]
[null,null,null,null,null,null,null,null,null,null,null,"",null,null,"",null,null,null,null,null,""]
[null,null,null,null,null,null,null,null,null,null,null,"",null,null,"",null,null,null,null,null,""]
[null,null,null,null,null,null,null,null,null,null,null,"",null,null,"",null,null,null,null,null,""]
[null,null,null,null,null,null,null,null,null,null,null,"",null,null,"",null,null,null,null,null,""]
[null,null,null,null,null,null,null,null,null,null,null,"",null,null,"",null,null,null,null,null,""]
[null,null,null,null,null,null,null,null,null,null,null,"",null,null,"",null,null,null,null,null,""]
[null,null,null,null,null,null,null,null,null,null,null,"",null,null,"",null,null,null,null,null,""]
[null,null,null,null,null,null,null,null,null,null,null,"",null,null,"",null,null,null,null,null,""]
[null,null,null,null,null,null,null,null,null,null,null,"",null,null,"",null,null,null,null,null,""]
[null,null,null,null,null,null,null,null,null,null,null,"",null,null,"",null,null,null,null,null,""]
[null,null,null,null,null,null,null,null,null,null,null,"",null,null,"",null,null,null,null,null,""]
[null,null,null,null,null,null,null,null,null,null,null,"",null,null,"",null,null,null,null,null,""]
[null,null,null,null,null,null,null,null,null,null,null,"",null,null,"",null,null,null,null,null,""]
[null,null,null,null,null,null,null,null,null,null,null,"",null,null,"",null,null,null,null,null,""]
[null,null,null,null,null,null,null,null,null,null,null,"",null,null,"",null,null,null,null,null,""]
[null,null,null,null,null,null,null,null,null,null,null,"",null,null,"",null,null,null,null,null,""]
[null,null,null,null,null,null,null,null,null,null,null,"",null,null,"",null,null,null,null,null,""]
[null,null,null,null,null,null,null,null,null,null,null,"",null,null,"",null,null,null,null,null,""]
[null,null,null,null,null,null,null,null,null,null,null,"",null,null,"",null,null,null,null,null,""]
[null,null,null,null,null,null,null,null,null,null,null,"",null,null,"",null,null,null,null,null,""]
[null,null,null,null,null,null,null,null,null,null,null,"",null,null,"",null,null,null,null,null,""]
[null,null,null,null,null,null,null,null,null,null,null,"",null,null,"",null,null,null,null,null,""]
[null,null,null,null,null,null,null,null,null,null,null,"",null,null,"",null,null,null,null,null,""]
[null,null,null,null,null,null,null,null,null,null,null,"",null,null,"",null,null,null,null,null,""]
[null,null,null,null,null,null,null,null,null,null,null,"",null,null,"",null,null,null,null,null,""]
[null,null,null,null,null,null,null,null,null,null,null,"",null,null,"",null,null,null,null,null,""]
[null,null,null,null,null,null,null,null,null,null,null,"",null,null,"",null,null,null,null,null,""]
[null,null,null,null,null,null,null,null,null,null,null,"",null,null,"",null,null,null,null,null,""]
[null,null,null,null,null,null,null,null,null,null,null,"",null,null,"",null,null,null,null,null,""]
[null,null,null,null,null,null,null,null,null,null,null,"",null,null,"",null,null,null,null,null,""]
[null,null,null,null,null,null,null,null,null,null,null,"",null,null,"",null,null,null,null,null,""]
[null,null,null,null,null,null,null,null,null,null,null,"",null,null,"",null,null,null,null,null,""]
[null,null,null,null,null,null,null,null,null,null,null,"",null,null,"",null,null,null,null,null,""]
[null,null,null,null,null,null,null,null,null,null,null,"",null,null,"",null,null,null,null,null,""]
[null,null,null,null,null,null,null,null,null,null,null,"",null,null,"",null,null,null,null,null,""]
[null,null,null,null,null,null,null,null,null,null,null,"",null,null,"",null,null,null,null,null,""]
[null,null,null,null,null,null,null,null,null,null,null,"",null,null,"",null,null,null,null,null,""]
[null,null,null,null,null,null,null,null,null,null,null,"",null,null,"",null,null,null,null,null,""]
[null,null,null,null,null,null,null,null,null,null,null,"",null,null,"",null,null,null,null,null,""]
[null,null,null,null,null,null,null,null,null,null,null,"",null,null,"",null,null,null,null,null,""]
[null,null,null,null,null,null,null,null,null,null,null,"",null,null,"",null,null,null,null,null,""]
[null,null,null,null,null,null,null,null,null,null,null,"",null,null,"",null,null,null,null,null,""]
[null,null,null,null,null,null,null,null,null,null,null,"",null,null,"",null,null,null,null,null,""]
[null,null,null,null,null,null,null,null,null,null,null,"",null,null,"",null,null,null,null,null,""]
[null,null,null,null,null,null,null,null,null,null,null,"",null,null,"",null,null,null,null,null,""]
[null,null,null,null,null,null,null,null,null,null,null,"",null,null,"",null,null,null,null,null,""]
[null,null,null,null,null,null,null,null,null,null,null,"",null,null,"",null,null,null,null,null,""]
[null,null,null,null,null,null,null,null,null,null,null,"",null,null,"",null,null,null,null,null,""]
[null,null,null,null,null,null,null,null,null,null,null,"",null,null,"",null,null,null,null,null,""]
[null,null,null,null,null,null,null,null,null,null,null,"",null,null,"",null,null,null,null,null,""]
[null,null,null,null,null,null,null,null,null,null,null,"",null,null,"",null,null,null,null,null,""]
[null,null,null,null,null,null,null,null,null,null,null,"",null,null,"",null,null,null,null,null,""]
[null,null,null,null,null,null,null,null,null,null,null,"",null,null,"",null,null,null,null,null,""]
[null,null,null,null,null,null,null,null,null,null,null,"",null,null,"",null,null,null,null,null,""]
[null,null,null,null,null,null,null,null,null,null,null,"",null,null,"",null,null,null,null,null,""]
[null,null,null,null,null,null,null,null,null,null,null,"",null,null,"",null,null,null,null,null,""]
[null,null,null,null,null,null,null,null,null,null,null,"",null,null,"",null,null,null,null,null,""]
[null,null,null,null,null,null,null,null,null,null,null,"",null,null,"",null,null,null,null,null,""]
[null,null,null,null,null,null,null,null,null,null,null,{"$f":"CalculeDelai(B262, K262, J262)","v":""},null,null,{"$f":"CalculeDUA(B262, N262, M262)","v":""},null,null,null,null,null,{"$f":"CalculeDureeClassif(B262, T262, S262)","v":""}]
[null,null,null,null,null,null,null,null,null,null,null,"",null,null,"",null,null,null,null,null,""]
[null,null,null,null,null,null,null,null,null,null,null,"",null,null,"",null,null,null,null,null,""]
[null,null,null,null,null,null,null,null,null,null,null,"",null,null,"",null,null,null,null,null,""]
[null,null,null,null,null,null,null,null,null,null,null,"",null,null,"",null,null,null,null,null,""]
[null,null,null,null,null,null,null,null,null,null,null,"",null,null,"",null,null,null,null,null,""]
[null,null,null,null,null,null,null,null,null,null,null,"",null,null,"",null,null,null,null,null,""]
[null,null,null,null,null,null,null,null,null,null,null,"",null,null,"",null,null,null,null,null,""]
[null,null,null,null,null,null,null,null,null,null,null,"",null,null,"",null,null,null,null,null,""]
[null,null,null,null,null,null,null,null,null,null,null,"",null,null,"",null,null,null,null,null,""]
[null,null,null,null,null,null,null,null,null,null,null,"",null,null,"",null,null,null,null,null,""]
[null,null,null,null,null,null,null,null,null,null,null,"",null,null,"",null,null,null,null,null,""]
[null,null,null,null,null,null,null,null,null,null,null,"",null,null,"",null,null,null,null,null,""]
[null,null,null,null,null,null,null,null,null,null,null,"",null,null,"",null,null,null,null,null,""]
[null,null,null,null,null,null,null,null,null,null,null,"",null,null,"",null,null,null,null,null,""]
[null,null,null,null,null,null,null,null,null,null,null,"",null,null,"",null,null,null,null,null,""]
[null,null,null,null,null,null,null,null,null,null,null,"",null,null,"",null,null,null,null,null,""]
[null,null,null,null,null,null,null,null,null,null,null,"",null,null,"",null,null,null,null,null,""]
[null,null,null,null,null,null,null,null,null,null,null,"",null,null,"",null,null,null,null,null,""]
[null,null,null,null,null,null,null,null,null,null,null,"",null,null,"",null,null,null,null,null,""]
[null,null,null,null,null,null,null,null,null,null,null,"",null,null,"",null,null,null,null,null,""]
[null,null,null,null,null,null,null,null,null,null,null,"",null,null,"",null,null,null,null,null,""]
[null,null,null,null,null,null,null,null,null,null,null,"",null,null,"",null,null,null,null,null,""]
[null,null,null,null,null,null,null,null,null,null,null,"",null,null,"",null,null,null,null,null,""]
[null,null,null,null,null,null,null,null,null,null,null,"",null,null,"",null,null,null,null,null,""]
[null,null,null,null,null,null,null,null,null,null,null,"",null,null,"",null,null,null,null,null,""]
[null,null,null,null,null,null,null,null,null,null,null,"",null,null,"",null,null,null,null,null,""]
[null,null,null,null,null,null,null,null,null,null,null,"",null,null,"",null,null,null,null,null,""]
[null,null,null,null,null,null,null,null,null,null,null,"",null,null,"",null,null,null,null,null,""]
[null,null,null,null,null,null,null,null,null,null,null,"",null,null,"",null,null,null,null,null,""]
[null,null,null,null,null,null,null,null,null,null,null,"",null,null,"",null,null,null,null,null,""]
[null,null,null,null,null,null,null,null,null,null,null,"",null,null,"",null,null,null,null,null,""]
[null,null,null,null,null,null,null,null,null,null,null,"",null,null,"",null,null,null,null,null,""]
[null,null,null,null,null,null,null,null,null,null,null,"",null,null,"",null,null,null,null,null,""]
[null,null,null,null,null,null,null,null,null,null,null,"",null,null,"",null,null,null,null,null,""]
[null,null,null,null,null,null,null,null,null,null,null,"",null,null,"",null,null,null,null,null,""]
[null,null,null,null,null,null,null,null,null,null,null,"",null,null,"",null,null,null,null,null,""]
[null,null,null,null,null,null,null,null,null,null,null,"",null,null,"",null,null,null,null,null,""]
[null,null,null,null,null,null,null,null,null,null,null,"",null,null,"",null,null,null,null,null,""]
[null,null,null,null,null,null,null,null,null,null,null,"",null,null,"",null,null,null,null,null,""]
[null,null,null,null,null,null,null,null,null,null,null,"",null,null,"",null,null,null,null,null,""]
[null,null,null,null,null,null,null,null,null,null,null,"",null,null,"",null,null,null,null,null,""]
[null,null,null,null,null,null,null,null,null,null,null,"",null,null,"",null,null,null,null,null,""]
[null,null,null,null,null,null,null,null,null,null,null,"",null,null,"",null,null,null,null,null,""]
[null,null,null,null,null,null,null,null,null,null,null,"",null,null,"",null,null,null,null,null,""]
[null,null,null,null,null,null,null,null,null,null,null,"",null,null,"",null,null,null,null,null,""]
[null,null,null,null,null,null,null,null,null,null,null,"",null,null,"",null,null,null,null,null,""]
[null,null,null,null,null,null,null,null,null,null,null,"",null,null,"",null,null,null,null,null,""]
[null,null,null,null,null,null,null,null,null,null,null,"",null,null,"",null,null,null,null,null,""]
[null,null,null,null,null,null,null,null,null,null,null,"",null,null,"",null,null,null,null,null,""]
[null,null,null,null,null,null,null,null,null,null,null,"",null,null,"",null,null,null,null,null,""]
[null,null,null,null,null,null,null,null,null,null,null,"",null,null,"",null,null,null,null,null,""]
[null,null,null,null,null,null,null,null,null,null,null,"",null,null,"",null,null,null,null,null,""]
[null,null,null,null,null,null,null,null,null,null,null,"",null,null,"",null,null,null,null,null,""]
[null,null,null,null,null,null,null,null,null,null,null,"",null,null,"",null,null,null,null,null,""]
[null,null,null,null,null,null,null,null,null,null,null,"",null,null,"",null,null,null,null,null,""]
[null,null,null,null,null,null,null,null,null,null,null,"",null,null,"",null,null,null,null,null,""]
[null,null,null,null,null,null,null,null,null,null,null,"",null,null,"",null,null,null,null,null,""]
[null,null,null,null,null,null,null,null,null,null,null,"",null,null,"",null,null,null,null,null,""]
[null,null,null,null,null,null,null,null,null,null,null,"",null,null,"",null,null,null,null,null,""]
[null,null,null,null,null,null,null,null,null,null,null,"",null,null,"",null,null,null,null,null,""]
[null,null,null,null,null,null,null,null,null,null,null,"",null,null,"",null,null,null,null,null,""]
[null,null,null,null,null,null,null,null,null,null,null,"",null,null,"",null,null,null,null,null,""]
[null,null,null,null,null,null,null,null,null,null,null,"",null,null,"",null,null,null,null,null,""]
[null,null,null,null,null,null,null,null,null,null,null,{"$f":"CalculeDelai(B326, K326, J326)","v":""},null,null,{"$f":"CalculeDUA(B326, N326, M326)","v":""},null,null,null,null,null,{"$f":"CalculeDureeClassif(B326, T326, S326)","v":""}]
[null,null,null,null,null,null,null,null,null,null,null,"",null,null,"",null,null,null,null,null,""]
[null,null,null,null,null,null,null,null,null,null,null,"",null,null,"",null,null,null,null,null,""]
[null,null,null,null,null,null,null,null,null,null,null,"",null,null,"",null,null,null,null,null,""]
[null,null,null,null,null,null,null,null,null,null,null,"",null,null,"",null,null,null,null,null,""]
[null,null,null,null,null,null,null,null,null,null,null,"",null,null,"",null,null,null,null,null,""]
[null,null,null,null,null,null,null,null,null,null,null,"",null,null,"",null,null,null,null,null,""]
[null,null,null,null,null,null,null,null,null,null,null,"",null,null,"",null,null,null,null,null,""]
[null,null,null,null,null,null,null,null,null,null,null,"",null,null,"",null,null,null,null,null,""]
[null,null,null,null,null,null,null,null,null,null,null,"",null,null,"",null,null,null,null,null,""]
[null,null,null,null,null,null,null,null,null,null,null,"",null,null,"",null,null,null,null,null,""]
[null,null,null,null,null,null,null,null,null,null,null,"",null,null,"",null,null,null,null,null,""]
[null,null,null,null,null,null,null,null,null,null,null,"",null,null,"",null,null,null,null,null,""]
[null,null,null,null,null,null,null,null,null,null,null,"",null,null,"",null,null,null,null,null,""]
[null,null,null,null,null,null,null,null,null,null,null,"",null,null,"",null,null,null,null,null,""]
[null,null,null,null,null,null,null,null,null,null,null,"",null,null,"",null,null,null,null,null,""]
[null,null,null,null,null,null,null,null,null,null,null,"",null,null,"",null,null,null,null,null,""]
[null,null,null,null,null,null,null,null,null,null,null,"",null,null,"",null,null,null,null,null,""]
[null,null,null,null,null,null,null,null,null,null,null,"",null,null,"",null,null,null,null,null,""]
[null,null,null,null,null,null,null,null,null,null,null,"",null,null,"",null,null,null,null,null,""]
[null,null,null,null,null,null,null,null,null,null,null,"",null,null,"",null,null,null,null,null,""]
[null,null,null,null,null,null,null,null,null,null,null,"",null,null,"",null,null,null,null,null,""]
[null,null,null,null,null,null,null,null,null,null,null,"",null,null,"",null,null,null,null,null,""]
[null,null,null,null,null,null,null,null,null,null,null,"",null,null,"",null,null,null,null,null,""]
[null,null,null,null,null,null,null,null,null,null,null,"",null,null,"",null,null,null,null,null,""]
[null,null,null,null,null,null,null,null,null,null,null,"",null,null,"",null,null,null,null,null,""]
[null,null,null,null,null,null,null,null,null,null,null,"",null,null,"",null,null,null,null,null,""]
[null,null,null,null,null,null,null,null,null,null,null,"",null,null,"",null,null,null,null,null,""]
[null,null,null,null,null,null,null,null,null,null,null,"",null,null,"",null,null,null,null,null,""]
[null,null,null,null,null,null,null,null,null,null,null,"",null,null,"",null,null,null,null,null,""]
[null,null,null,null,null,null,null,null,null,null,null,"",null,null,"",null,null,null,null,null,""]
[null,null,null,null,null,null,null,null,null,null,null,"",null,null,"",null,null,null,null,null,""]
[null,null,null,null,null,null,null,null,null,null,null,"",null,null,"",null,null,null,null,null,""]
[null,null,null,null,null,null,null,null,null,null,null,"",null,null,"",null,null,null,null,null,""]
[null,null,null,null,null,null,null,null,null,null,null,"",null,null,"",null,null,null,null,null,""]
[null,null,null,null,null,null,null,null,null,null,null,"",null,null,"",null,null,null,null,null,""]
[null,null,null,null,null,null,null,null,null,null,null,"",null,null,"",null,null,null,null,null,""]
[null,null,null,null,null,null,null,null,null,null,null,"",null,null,"",null,null,null,null,null,""]
[null,null,null,null,null,null,null,null,null,null,null,"",null,null,"",null,null,null,null,null,""]
[null,null,null,null,null,null,null,null,null,null,null,"",null,null,"",null,null,null,null,null,""]
[null,null,null,null,null,null,null,null,null,null,null,"",null,null,"",null,null,null,null,null,""]
[null,null,null,null,null,null,null,null,null,null,null,"",null,null,"",null,null,null,null,null,""]
[null,null,null,null,null,null,null,null,null,null,null,"",null,null,"",null,null,null,null,null,""]
[null,null,null,null,null,null,null,null,null,null,null,"",null,null,"",null,null,null,null,null,""]
[null,null,null,null,null,null,null,null,null,null,null,"",null,null,"",null,null,null,null,null,""]
[null,null,null,null,null,null,null,null,null,null,null,"",null,null,"",null,null,null,null,null,""]
[null,null,null,null,null,null,null,null,null,null,null,"",null,null,"",null,null,null,null,null,""]
[null,null,null,null,null,null,null,null,null,null,null,"",null,null,"",null,null,null,null,null,""]
[null,null,null,null,null,null,null,null,null,null,null,"",null,null,"",null,null,null,null,null,""]
[null,null,null,null,null,null,null,null,null,null,null,"",null,null,"",null,null,null,null,null,""]
[null,null,null,null,null,null,null,null,null,null,null,"",null,null,"",null,null,null,null,null,""]
[null,null,null,null,null,null,null,null,null,null,null,"",null,null,"",null,null,null,null,null,""]
[null,null,null,null,null,null,null,null,null,null,null,"",null,null,"",null,null,null,null,null,""]
[null,null,null,null,null,null,null,null,null,null,null,"",null,null,"",null,null,null,null,null,""]
[null,null,null,null,null,null,null,null,null,null,null,"",null,null,"",null,null,null,null,null,""]
[null,null,null,null,null,null,null,null,null,null,null,"",null,null,"",null,null,null,null,null,""]
[null,null,null,null,null,null,null,null,null,null,null,"",null,null,"",null,null,null,null,null,""]
[null,null,null,null,null,null,null,null,null,null,null,"",null,null,"",null,null,null,null,null,""]
[null,null,null,null,null,null,null,null,null,null,null,"",null,null,"",null,null,null,null,null,""]
[null,null,null,null,null,null,null,null,null,null,null,"",null,null,"",null,null,null,null,null,""]
[null,null,null,null,null,null,null,null,null,null,null,"",null,null,"",null,null,null,null,null,""]
[null,null,null,null,null,null,null,null,null,null,null,"",null,null,"",null,null,null,null,null,""]
[null,null,null,null,null,null,null,null,null,null,null,"",null,null,"",null,null,null,null,null,""]
[null,null,null,null,null,null,null,null,null,null,null,"",null,null,"",null,null,null,null,null,""]
[null,null,null,null,null,null,null,null,null,null,null,{"$f":"CalculeDelai(B390, K390, J390)","v":""},null,null,{"$f":"CalculeDUA(B390, N390, M390)","v":""},null,null,null,null,null,{"$f":"CalculeDureeClassif(B390, T390, S390)","v":""}]
[null,null,null,null,null,null,null,null,null,null,null,"",null,null,"",null,null,null,null,null,""]
[null,null,null,null,null,null,null,null,null,null,null,"",null,null,"",null,null,null,null,null,""]
[null,null,null,null,null,null,null,null,null,null,null,"",null,null,"",null,null,null,null,null,""]
[null,null,null,null,null,null,null,null,null,null,null,"",null,null,"",null,null,null,null,null,""]
[null,null,null,null,null,null,null,null,null,null,null,"",null,null,"",null,null,null,null,null,""]
[null,null,null,null,null,null,null,null,null,null,null,"",null,null,"",null,null,null,null,null,""]
[null,null,null,null,null,null,null,null,null,null,null,"",null,null,"",null,null,null,null,null,""]
[null,null,null,null,null,null,null,null,null,null,null,"",null,null,"",null,null,null,null,null,""]
[null,null,null,null,null,null,null,null,null,null,null,"",null,null,"",null,null,null,null,null,""]
[null,null,null,null,null,null,null,null,null,null,null,"",null,null,"",null,null,null,null,null,""]
[null,null,null,null,null,null,null,null,null,null,null,"",null,null,"",null,null,null,null,null,""]
[null,null,null,null,null,null,null,null,null,null,null,"",null,null,"",null,null,null,null,null,""]
[null,null,null,null,null,null,null,null,null,null,null,"",null,null,"",null,null,null,null,null,""]
[null,null,null,null,null,null,null,null,null,null,null,"",null,null,"",null,null,null,null,null,""]
[null,null,null,null,null,null,null,null,null,null,null,"",null,null,"",null,null,null,null,null,""]
[null,null,null,null,null,null,null,null,null,null,null,"",null,null,"",null,null,null,null,null,""]
[null,null,null,null,null,null,null,null,null,null,null,"",null,null,"",null,null,null,null,null,""]
[null,null,null,null,null,null,null,null,null,null,null,"",null,null,"",null,null,null,null,null,""]
[null,null,null,null,null,null,null,null,null,null,null,"",null,null,"",null,null,null,null,null,""]
[null,null,null,null,null,null,null,null,null,null,null,"",null,null,"",null,null,null,null,null,""]
[null,null,null,null,null,null,null,null,null,null,null,"",null,null,"",null,null,null,null,null,""]
[null,null,null,null,null,null,null,null,null,null,null,"",null,null,"",null,null,null,null,null,""]
[null,null,null,null,null,null,null,null,null,null,null,"",null,null,"",null,null,null,null,null,""]
[null,null,null,null,null,null,null,null,null,null,null,"",null,null,"",null,null,null,null,null,""]
[null,null,null,null,null,null,null,null,null,null,null,"",null,null,"",null,null,null,null,null,""]
[null,null,null,null,null,null,null,null,null,null,null,"",null,null,"",null,null,null,null,null,""]
[null,null,null,null,null,null,null,null,null,null,null,"",null,null,"",null,null,null,null,null,""]
[null,null,null,null,null,null,null,null,null,null,null,"",null,null,"",null,null,null,null,null,""]
[null,null,null,null,null,null,null,null,null,null,null,"",null,null,"",null,null,null,null,null,""]
[null,null,null,null,null,null,null,null,null,null,null,"",null,null,"",null,null,null,null,null,""]
[null,null,null,null,null,null,null,null,null,null,null,"",null,null,"",null,null,null,null,null,""]
[null,null,null,null,null,null,null,null,null,null,null,"",null,null,"",null,null,null,null,null,""]
[null,null,null,null,null,null,null,null,null,null,null,"",null,null,"",null,null,null,null,null,""]
[null,null,null,null,null,null,null,null,null,null,null,"",null,null,"",null,null,null,null,null,""]
[null,null,null,null,null,null,null,null,null,null,null,"",null,null,"",null,null,null,null,null,""]
[null,null,null,null,null,null,null,null,null,null,null,"",null,null,"",null,null,null,null,null,""]
[null,null,null,null,null,null,null,null,null,null,null,"",null,null,"",null,null,null,null,null,""]
[null,null,null,null,null,null,null,null,null,null,null,"",null,null,"",null,null,null,null,null,""]
[null,null,null,null,null,null,null,null,null,null,null,"",null,null,"",null,null,null,null,null,""]
[null,null,null,null,null,null,null,null,null,null,null,"",null,null,"",null,null,null,null,null,""]
[null,null,null,null,null,null,null,null,null,null,null,"",null,null,"",null,null,null,null,null,""]
[null,null,null,null,null,null,null,null,null,null,null,"",null,null,"",null,null,null,null,null,""]
[null,null,null,null,null,null,null,null,null,null,null,"",null,null,"",null,null,null,null,null,""]
[null,null,null,null,null,null,null,null,null,null,null,"",null,null,"",null,null,null,null,null,""]
[null,null,null,null,null,null,null,null,null,null,null,"",null,null,"",null,null,null,null,null,""]
[null,null,null,null,null,null,null,null,null,null,null,"",null,null,"",null,null,null,null,null,""]
[null,null,null,null,null,null,null,null,null,null,null,"",null,null,"",null,null,null,null,null,""]
[null,null,null,null,null,null,null,null,null,null,null,"",null,null,"",null,null,null,null,null,""]
[null,null,null,null,null,null,null,null,null,null,null,"",null,null,"",null,null,null,null,null,""]
[null,null,null,null,null,null,null,null,null,null,null,"",null,null,"",null,null,null,null,null,""]
[null,null,null,null,null,null,null,null,null,null,null,"",null,null,"",null,null,null,null,null,""]
[null,null,null,null,null,null,null,null,null,null,null,"",null,null,"",null,null,null,null,null,""]
[null,null,null,null,null,null,null,null,null,null,null,"",null,null,"",null,null,null,null,null,""]
[null,null,null,null,null,null,null,null,null,null,null,"",null,null,"",null,null,null,null,null,""]
[null,null,null,null,null,null,null,null,null,null,null,"",null,null,"",null,null,null,null,null,""]
[null,null,null,null,null,null,null,null,null,null,null,"",null,null,"",null,null,null,null,null,""]
[null,null,null,null,null,null,null,null,null,null,null,"",null,null,"",null,null,null,null,null,""]
[null,null,null,null,null,null,null,null,null,null,null,"",null,null,"",null,null,null,null,null,""]
[null,null,null,null,null,null,null,null,null,null,null,"",null,null,"",null,null,null,null,null,""]
[null,null,null,null,null,null,null,null,null,null,null,"",null,null,"",null,null,null,null,null,""]
[null,null,null,null,null,null,null,null,null,null,null,"",null,null,"",null,null,null,null,null,""]
[null,null,null,null,null,null,null,null,null,null,null,"",null,null,"",null,null,null,null,null,""]
[null,null,null,null,null,null,null,null,null,null,null,"",null,null,"",null,null,null,null,null,""]
[null,null,null,null,null,null,null,null,null,null,null,{"$f":"CalculeDelai(B454, K454, J454)","v":""},null,null,{"$f":"CalculeDUA(B454, N454, M454)","v":""},null,null,null,null,null,{"$f":"CalculeDureeClassif(B454, T454, S454)","v":""}]
[null,null,null,null,null,null,null,null,null,null,null,"",null,null,"",null,null,null,null,null,""]
[null,null,null,null,null,null,null,null,null,null,null,"",null,null,"",null,null,null,null,null,""]
[null,null,null,null,null,null,null,null,null,null,null,"",null,null,"",null,null,null,null,null,""]
[null,null,null,null,null,null,null,null,null,null,null,"",null,null,"",null,null,null,null,null,""]
[null,null,null,null,null,null,null,null,null,null,null,"",null,null,"",null,null,null,null,null,""]
[null,null,null,null,null,null,null,null,null,null,null,"",null,null,"",null,null,null,null,null,""]
[null,null,null,null,null,null,null,null,null,null,null,"",null,null,"",null,null,null,null,null,""]
[null,null,null,null,null,null,null,null,null,null,null,"",null,null,"",null,null,null,null,null,""]
[null,null,null,null,null,null,null,null,null,null,null,"",null,null,"",null,null,null,null,null,""]
[null,null,null,null,null,null,null,null,null,null,null,"",null,null,"",null,null,null,null,null,""]
[null,null,null,null,null,null,null,null,null,null,null,"",null,null,"",null,null,null,null,null,""]
[null,null,null,null,null,null,null,null,null,null,null,"",null,null,"",null,null,null,null,null,""]
[null,null,null,null,null,null,null,null,null,null,null,"",null,null,"",null,null,null,null,null,""]
[null,null,null,null,null,null,null,null,null,null,null,"",null,null,"",null,null,null,null,null,""]
[null,null,null,null,null,null,null,null,null,null,null,"",null,null,"",null,null,null,null,null,""]
[null,null,null,null,null,null,null,null,null,null,null,"",null,null,"",null,null,null,null,null,""]
[null,null,null,null,null,null,null,null,null,null,null,"",null,null,"",null,null,null,null,null,""]
[null,null,null,null,null,null,null,null,null,null,null,"",null,null,"",null,null,null,null,null,""]
[null,null,null,null,null,null,null,null,null,null,null,"",null,null,"",null,null,null,null,null,""]
[null,null,null,null,null,null,null,null,null,null,null,"",null,null,"",null,null,null,null,null,""]
[null,null,null,null,null,null,null,null,null,null,null,"",null,null,"",null,null,null,null,null,""]
[null,null,null,null,null,null,null,null,null,null,null,"",null,null,"",null,null,null,null,null,""]
[null,null,null,null,null,null,null,null,null,null,null,"",null,null,"",null,null,null,null,null,""]
[null,null,null,null,null,null,null,null,null,null,null,"",null,null,"",null,null,null,null,null,""]
[null,null,null,null,null,null,null,null,null,null,null,"",null,null,"",null,null,null,null,null,""]
[null,null,null,null,null,null,null,null,null,null,null,"",null,null,"",null,null,null,null,null,""]
[null,null,null,null,null,null,null,null,null,null,null,"",null,null,"",null,null,null,null,null,""]
[null,null,null,null,null,null,null,null,null,null,null,"",null,null,"",null,null,null,null,null,""]
[null,null,null,null,null,null,null,null,null,null,null,"",null,null,"",null,null,null,null,null,""]
[null,null,null,null,null,null,null,null,null,null,null,"",null,null,"",null,null,null,null,null,""]
[null,null,null,null,null,null,null,null,null,null,null,"",null,null,"",null,null,null,null,null,""]
[null,null,null,null,null,null,null,null,null,null,null,"",null,null,"",null,null,null,null,null,""]
[null,null,null,null,null,null,null,null,null,null,null,"",null,null,"",null,null,null,null,null,""]
[null,null,null,null,null,null,null,null,null,null,null,"",null,null,"",null,null,null,null,null,""]
[null,null,null,null,null,null,null,null,null,null,null,"",null,null,"",null,null,null,null,null,""]
[null,null,null,null,null,null,null,null,null,null,null,"",null,null,"",null,null,null,null,null,""]
[null,null,null,null,null,null,null,null,null,null,null,"",null,null,"",null,null,null,null,null,""]
[null,null,null,null,null,null,null,null,null,null,null,"",null,null,"",null,null,null,null,null,""]
[null,null,null,null,null,null,null,null,null,null,null,"",null,null,"",null,null,null,null,null,""]
[null,null,null,null,null,null,null,null,null,null,null,"",null,null,"",null,null,null,null,null,""]
[null,null,null,null,null,null,null,null,null,null,null,"",null,null,"",null,null,null,null,null,""]
[null,null,null,null,null,null,null,null,null,null,null,"",null,null,"",null,null,null,null,null,""]
[null,null,null,null,null,null,null,null,null,null,null,"",null,null,"",null,null,null,null,null,""]
[null,null,null,null,null,null,null,null,null,null,null,"",null,null,"",null,null,null,null,null,""]
[null,null,null,null,null,null,null,null,null,null,null,"",null,null,"",null,null,null,null,null,""]
[null,null,null,null,null,null,null,null,null,null,null,"",null,null,"",null,null,null,null,null,""]
[null,null,null,null,null,null,null,null,null,null,null,"",null,null,"",null,null,null,null,null,""]
[null,null,null,null,null,null,null,null,null,null,null,"",null,null,"",null,null,null,null,null,""]
[null,null,null,null,null,null,null,null,null,null,null,"",null,null,"",null,null,null,null,null,""]
[null,null,null,null,null,null,null,null,null,null,null,"",null,null,"",null,null,null,null,null,""]
[null,null,null,null,null,null,null,null,null,null,null,"",null,null,"",null,null,null,null,null,""]
[null,null,null,null,null,null,null,null,null,null,null,"",null,null,"",null,null,null,null,null,""]
[null,null,null,null,null,null,null,null,null,null,null,"",null,null,"",null,null,null,null,null,""]
[null,null,null,null,null,null,null,null,null,null,null,"",null,null,"",null,null,null,null,null,""]
[null,null,null,null,null,null,null,null,null,null,null,"",null,null,"",null,null,null,null,null,""]
[null,null,null,null,null,null,null,null,null,null,null,"",null,null,"",null,null,null,null,null,""]
[null,null,null,null,null,null,null,null,null,null,null,"",null,null,"",null,null,null,null,null,""]
[null,null,null,null,null,null,null,null,null,null,null,"",null,null,"",null,null,null,null,null,""]
[null,null,null,null,null,null,null,null,null,null,null,"",null,null,"",null,null,null,null,null,""]
[null,null,null,null,null,null,null,null,null,null,null,"",null,null,"",null,null,null,null,null,""]
[null,null,null,null,null,null,null,null,null,null,null,"",null,null,"",null,null,null,null,null,""]
[null,null,null,null,null,null,null,null,null,null,null,"",null,null,"",null,null,null,null,null,""]
[null,null,null,null,null,null,null,null,null,null,null,"",null,null,"",null,null,null,null,null,""]
[null,null,null,null,null,null,null,null,null,null,null,{"$f":"CalculeDelai(B518, K518, J518)","v":""},null,null,{"$f":"CalculeDUA(B518, N518, M518)","v":""},null,null,null,null,null,{"$f":"CalculeDureeClassif(B518, T518, S518)","v":""}]
[null,null,null,null,null,null,null,null,null,null,null,"",null,null,"",null,null,null,null,null,""]
[null,null,null,null,null,null,null,null,null,null,null,"",null,null,"",null,null,null,null,null,""]
[null,null,null,null,null,null,null,null,null,null,null,"",null,null,"",null,null,null,null,null,""]
[null,null,null,null,null,null,null,null,null,null,null,"",null,null,"",null,null,null,null,null,""]
[null,null,null,null,null,null,null,null,null,null,null,"",null,null,"",null,null,null,null,null,""]
[null,null,null,null,null,null,null,null,null,null,null,"",null,null,"",null,null,null,null,null,""]
[null,null,null,null,null,null,null,null,null,null,null,"",null,null,"",null,null,null,null,null,""]
[null,null,null,null,null,null,null,null,null,null,null,"",null,null,"",null,null,null,null,null,""]
[null,null,null,null,null,null,null,null,null,null,null,"",null,null,"",null,null,null,null,null,""]
[null,null,null,null,null,null,null,null,null,null,null,"",null,null,"",null,null,null,null,null,""]
[null,null,null,null,null,null,null,null,null,null,null,"",null,null,"",null,null,null,null,null,""]
[null,null,null,null,null,null,null,null,null,null,null,"",null,null,"",null,null,null,null,null,""]
[null,null,null,null,null,null,null,null,null,null,null,"",null,null,"",null,null,null,null,null,""]
[null,null,null,null,null,null,null,null,null,null,null,"",null,null,"",null,null,null,null,null,""]
[null,null,null,null,null,null,null,null,null,null,null,"",null,null,"",null,null,null,null,null,""]
[null,null,null,null,null,null,null,null,null,null,null,"",null,null,"",null,null,null,null,null,""]
[null,null,null,null,null,null,null,null,null,null,null,"",null,null,"",null,null,null,null,null,""]
[null,null,null,null,null,null,null,null,null,null,null,"",null,null,"",null,null,null,null,null,""]
[null,null,null,null,null,null,null,null,null,null,null,"",null,null,"",null,null,null,null,null,""]
[null,null,null,null,null,null,null,null,null,null,null,"",null,null,"",null,null,null,null,null,""]
[null,null,null,null,null,null,null,null,null,null,null,"",null,null,"",null,null,null,null,null,""]
[null,null,null,null,null,null,null,null,null,null,null,"",null,null,"",null,null,null,null,null,""]
[null,null,null,null,null,null,null,null,null,null,null,"",null,null,"",null,null,null,null,null,""]
[null,null,null,null,null,null,null,null,null,null,null,"",null,null,"",null,null,null,null,null,""]
[null,null,null,null,null,null,null,null,null,null,null,"",null,null,"",null,null,null,null,null,""]
[null,null,null,null,null,null,null,null,null,null,null,"",null,null,"",null,null,null,null,null,""]
[null,null,null,null,null,null,null,null,null,null,null,"",null,null,"",null,null,null,null,null,""]
[null,null,null,null,null,null,null,null,null,null,null,"",null,null,"",null,null,null,null,null,""]
[null,null,null,null,null,null,null,null,null,null,null,"",null,null,"",null,null,null,null,null,""]
[null,null,null,null,null,null,null,null,null,null,null,"",null,null,"",null,null,null,null,null,""]
[null,null,null,null,null,null,null,null,null,null,null,"",null,null,"",null,null,null,null,null,""]
[null,null,null,null,null,null,null,null,null,null,null,"",null,null,"",null,null,null,null,null,""]
[null,null,null,null,null,null,null,null,null,null,null,"",null,null,"",null,null,null,null,null,""]
[null,null,null,null,null,null,null,null,null,null,null,"",null,null,"",null,null,null,null,null,""]
[null,null,null,null,null,null,null,null,null,null,null,"",null,null,"",null,null,null,null,null,""]
[null,null,null,null,null,null,null,null,null,null,null,"",null,null,"",null,null,null,null,null,""]
[null,null,null,null,null,null,null,null,null,null,null,"",null,null,"",null,null,null,null,null,""]
[null,null,null,null,null,null,null,null,null,null,null,"",null,null,"",null,null,null,null,null,""]
[null,null,null,null,null,null,null,null,null,null,null,"",null,null,"",null,null,null,null,null,""]
[null,null,null,null,null,null,null,null,null,null,null,"",null,null,"",null,null,null,null,null,""]
[null,null,null,null,null,null,null,null,null,null,null,"",null,null,"",null,null,null,null,null,""]
[null,null,null,null,null,null,null,null,null,null,null,"",null,null,"",null,null,null,null,null,""]
[null,null,null,null,null,null,null,null,null,null,null,"",null,null,"",null,null,null,null,null,""]
[null,null,null,null,null,null,null,null,null,null,null,"",null,null,"",null,null,null,null,null,""]
[null,null,null,null,null,null,null,null,null,null,null,"",null,null,"",null,null,null,null,null,""]
[null,null,null,null,null,null,null,null,null,null,null,"",null,null,"",null,null,null,null,null,""]
[null,null,null,null,null,null,null,null,null,null,null,"",null,null,"",null,null,null,null,null,""]
[null,null,null,null,null,null,null,null,null,null,null,"",null,null,"",null,null,null,null,null,""]
[null,null,null,null,null,null,null,null,null,null,null,"",null,null,"",null,null,null,null,null,""]
[null,null,null,null,null,null,null,null,null,null,null,"",null,null,"",null,null,null,null,null,""]
[null,null,null,null,null,null,null,null,null,null,null,"",null,null,"",null,null,null,null,null,""]
[null,null,null,null,null,null,null,null,null,null,null,"",null,null,"",null,null,null,null,null,""]
[null,null,null,null,null,null,null,null,null,null,null,"",null,null,"",null,null,null,null,null,""]
[null,null,null,null,null,null,null,null,null,null,null,"",null,null,"",null,null,null,null,null,""]
[null,null,null,null,null,null,null,null,null,null,null,"",null,null,"",null,null,null,null,null,""]
[null,null,null,null,null,null,null,null,null,null,null,"",null,null,"",null,null,null,null,null,""]
[null,null,null,null,null,null,null,null,null,null,null,"",null,null,"",null,null,null,null,null,""]
[null,null,null,null,null,null,null,null,null,null,null,"",null,null,"",null,null,null,null,null,""]
[null,null,null,null,null,null,null,null,null,null,null,"",null,null,"",null,null,null,null,null,""]
[null,null,null,null,null,null,null,null,null,null,null,"",null,null,"",null,null,null,null,null,""]
[null,null,null,null,null,null,null,null,null,null,null,"",null,null,"",null,null,null,null,null,""]
[null,null,null,null,null,null,null,null,null,null,null,"",null,null,"",null,null,null,null,null,""]
[null,null,null,null,null,null,null,null,null,null,null,"",null,null,"",null,null,null,null,null,""]
[null,null,null,null,null,null,null,null,null,null,null,{"$f":"CalculeDelai(B582, K582, J582)","v":""},null,null,{"$f":"CalculeDUA(B582, N582, M582)","v":""},null,null,null,null,null,{"$f":"CalculeDureeClassif(B582, T582, S582)","v":""}]
[null,null,null,null,null,null,null,null,null,null,null,"",null,null,"",null,null,null,null,null,""]
[null,null,null,null,null,null,null,null,null,null,null,"",null,null,"",null,null,null,null,null,""]
[null,null,null,null,null,null,null,null,null,null,null,"",null,null,"",null,null,null,null,null,""]
[null,null,null,null,null,null,null,null,null,null,null,"",null,null,"",null,null,null,null,null,""]
[null,null,null,null,null,null,null,null,null,null,null,"",null,null,"",null,null,null,null,null,""]
[null,null,null,null,null,null,null,null,null,null,null,"",null,null,"",null,null,null,null,null,""]
[null,null,null,null,null,null,null,null,null,null,null,"",null,null,"",null,null,null,null,null,""]
[null,null,null,null,null,null,null,null,null,null,null,"",null,null,"",null,null,null,null,null,""]
[null,null,null,null,null,null,null,null,null,null,null,"",null,null,"",null,null,null,null,null,""]
[null,null,null,null,null,null,null,null,null,null,null,"",null,null,"",null,null,null,null,null,""]
[null,null,null,null,null,null,null,null,null,null,null,"",null,null,"",null,null,null,null,null,""]
[null,null,null,null,null,null,null,null,null,null,null,"",null,null,"",null,null,null,null,null,""]
[null,null,null,null,null,null,null,null,null,null,null,"",null,null,"",null,null,null,null,null,""]
[null,null,null,null,null,null,null,null,null,null,null,"",null,null,"",null,null,null,null,null,""]
[null,null,null,null,null,null,null,null,null,null,null,"",null,null,"",null,null,null,null,null,""]
[null,null,null,null,null,null,null,null,null,null,null,"",null,null,"",null,null,null,null,null,""]
[null,null,null,null,null,null,null,null,null,null,null,"",null,null,"",null,null,null,null,null,""]
[null,null,null,null,null,null,null,null,null,null,null,"",null,null,"",null,null,null,null,null,""]
[null,null,null,null,null,null,null,null,null,null,null,"",null,null,"",null,null,null,null,null,""]
[null,null,null,null,null,null,null,null,null,null,null,"",null,null,"",null,null,null,null,null,""]
[null,null,null,null,null,null,null,null,null,null,null,"",null,null,"",null,null,null,null,null,""]
[null,null,null,null,null,null,null,null,null,null,null,"",null,null,"",null,null,null,null,null,""]
[null,null,null,null,null,null,null,null,null,null,null,"",null,null,"",null,null,null,null,null,""]
[null,null,null,null,null,null,null,null,null,null,null,"",null,null,"",null,null,null,null,null,""]
[null,null,null,null,null,null,null,null,null,null,null,"",null,null,"",null,null,null,null,null,""]
[null,null,null,null,null,null,null,null,null,null,null,"",null,null,"",null,null,null,null,null,""]
[null,null,null,null,null,null,null,null,null,null,null,"",null,null,"",null,null,null,null,null,""]
[null,null,null,null,null,null,null,null,null,null,null,"",null,null,"",null,null,null,null,null,""]
[null,null,null,null,null,null,null,null,null,null,null,"",null,null,"",null,null,null,null,null,""]
[null,null,null,null,null,null,null,null,null,null,null,"",null,null,"",null,null,null,null,null,""]
[null,null,null,null,null,null,null,null,null,null,null,"",null,null,"",null,null,null,null,null,""]
[null,null,null,null,null,null,null,null,null,null,null,"",null,null,"",null,null,null,null,null,""]
[null,null,null,null,null,null,null,null,null,null,null,"",null,null,"",null,null,null,null,null,""]
[null,null,null,null,null,null,null,null,null,null,null,"",null,null,"",null,null,null,null,null,""]
[null,null,null,null,null,null,null,null,null,null,null,"",null,null,"",null,null,null,null,null,""]
[null,null,null,null,null,null,null,null,null,null,null,"",null,null,"",null,null,null,null,null,""]
[null,null,null,null,null,null,null,null,null,null,null,"",null,null,"",null,null,null,null,null,""]
[null,null,null,null,null,null,null,null,null,null,null,"",null,null,"",null,null,null,null,null,""]
[null,null,null,null,null,null,null,null,null,null,null,"",null,null,"",null,null,null,null,null,""]
[null,null,null,null,null,null,null,null,null,null,null,"",null,null,"",null,null,null,null,null,""]
[null,null,null,null,null,null,null,null,null,null,null,"",null,null,"",null,null,null,null,null,""]
[null,null,null,null,null,null,null,null,null,null,null,"",null,null,"",null,null,null,null,null,""]
[null,null,null,null,null,null,null,null,null,null,null,"",null,null,"",null,null,null,null,null,""]
[null,null,null,null,null,null,null,null,null,null,null,"",null,null,"",null,null,null,null,null,""]
[null,null,null,null,null,null,null,null,null,null,null,"",null,null,"",null,null,null,null,null,""]
[null,null,null,null,null,null,null,null,null,null,null,"",null,null,"",null,null,null,null,null,""]
[null,null,null,null,null,null,null,null,null,null,null,"",null,null,"",null,null,null,null,null,""]
[null,null,null,null,null,null,null,null,null,null,null,"",null,null,"",null,null,null,null,null,""]
[null,null,null,null,null,null,null,null,null,null,null,"",null,null,"",null,null,null,null,null,""]
[null,null,null,null,null,null,null,null,null,null,null,"",null,null,"",null,null,null,null,null,""]
[null,null,null,null,null,null,null,null,null,null,null,"",null,null,"",null,null,null,null,null,""]
[null,null,null,null,null,null,null,null,null,null,null,"",null,null,"",null,null,null,null,null,""]
[null,null,null,null,null,null,null,null,null,null,null,"",null,null,"",null,null,null,null,null,""]
[null,null,null,null,null,null,null,null,null,null,null,"",null,null,"",null,null,null,null,null,""]
[null,null,null,null,null,null,null,null,null,null,null,"",null,null,"",null,null,null,null,null,""]
[null,null,null,null,null,null,null,null,null,null,null,"",null,null,"",null,null,null,null,null,""]
[null,null,null,null,null,null,null,null,null,null,null,"",null,null,"",null,null,null,null,null,""]
[null,null,null,null,null,null,null,null,null,null,null,"",null,null,"",null,null,null,null,null,""]
[null,null,null,null,null,null,null,null,null,null,null,"",null,null,"",null,null,null,null,null,""]
[null,null,null,null,null,null,null,null,null,null,null,"",null,null,"",null,null,null,null,null,""]
[null,null,null,null,null,null,null,null,null,null,null,"",null,null,"",null,null,null,null,null,""]
[null,null,null,null,null,null,null,null,null,null,null,"",null,null,"",null,null,null,null,null,""]
[null,null,null,null,null,null,null,null,null,null,null,"",null,null,"",null,null,null,null,null,""]
[null,null,null,null,null,null,null,null,null,null,null,{"$f":"CalculeDelai(B646, K646, J646)","v":""},null,null,{"$f":"CalculeDUA(B646, N646, M646)","v":""},null,null,null,null,null,{"$f":"CalculeDureeClassif(B646, T646, S646)","v":""}]
[null,null,null,null,null,null,null,null,null,null,null,"",null,null,"",null,null,null,null,null,""]
[null,null,null,null,null,null,null,null,null,null,null,"",null,null,"",null,null,null,null,null,""]
[null,null,null,null,null,null,null,null,null,null,null,"",null,null,"",null,null,null,null,null,""]
[null,null,null,null,null,null,null,null,null,null,null,"",null,null,"",null,null,null,null,null,""]
[null,null,null,null,null,null,null,null,null,null,null,"",null,null,"",null,null,null,null,null,""]
[null,null,null,null,null,null,null,null,null,null,null,"",null,null,"",null,null,null,null,null,""]
[null,null,null,null,null,null,null,null,null,null,null,"",null,null,"",null,null,null,null,null,""]
[null,null,null,null,null,null,null,null,null,null,null,"",null,null,"",null,null,null,null,null,""]
[null,null,null,null,null,null,null,null,null,null,null,"",null,null,"",null,null,null,null,null,""]
[null,null,null,null,null,null,null,null,null,null,null,"",null,null,"",null,null,null,null,null,""]
[null,null,null,null,null,null,null,null,null,null,null,"",null,null,"",null,null,null,null,null,""]
[null,null,null,null,null,null,null,null,null,null,null,"",null,null,"",null,null,null,null,null,""]
[null,null,null,null,null,null,null,null,null,null,null,"",null,null,"",null,null,null,null,null,""]
[null,null,null,null,null,null,null,null,null,null,null,"",null,null,"",null,null,null,null,null,""]
[null,null,null,null,null,null,null,null,null,null,null,"",null,null,"",null,null,null,null,null,""]
[null,null,null,null,null,null,null,null,null,null,null,"",null,null,"",null,null,null,null,null,""]
[null,null,null,null,null,null,null,null,null,null,null,"",null,null,"",null,null,null,null,null,""]
[null,null,null,null,null,null,null,null,null,null,null,"",null,null,"",null,null,null,null,null,""]
[null,null,null,null,null,null,null,null,null,null,null,"",null,null,"",null,null,null,null,null,""]
[null,null,null,null,null,null,null,null,null,null,null,"",null,null,"",null,null,null,null,null,""]
[null,null,null,null,null,null,null,null,null,null,null,"",null,null,"",null,null,null,null,null,""]
[null,null,null,null,null,null,null,null,null,null,null,"",null,null,"",null,null,null,null,null,""]
[null,null,null,null,null,null,null,null,null,null,null,"",null,null,"",null,null,null,null,null,""]
[null,null,null,null,null,null,null,null,null,null,null,"",null,null,"",null,null,null,null,null,""]
[null,null,null,null,null,null,null,null,null,null,null,"",null,null,"",null,null,null,null,null,""]
[null,null,null,null,null,null,null,null,null,null,null,"",null,null,"",null,null,null,null,null,""]
[null,null,null,null,null,null,null,null,null,null,null,"",null,null,"",null,null,null,null,null,""]
[null,null,null,null,null,null,null,null,null,null,null,"",null,null,"",null,null,null,null,null,""]
[null,null,null,null,null,null,null,null,null,null,null,"",null,null,"",null,null,null,null,null,""]
[null,null,null,null,null,null,null,null,null,null,null,"",null,null,"",null,null,null,null,null,""]
[null,null,null,null,null,null,null,null,null,null,null,"",null,null,"",null,null,null,null,null,""]
[null,null,null,null,null,null,null,null,null,null,null,"",null,null,"",null,null,null,null,null,""]
[null,null,null,null,null,null,null,null,null,null,null,"",null,null,"",null,null,null,null,null,""]
[null,null,null,null,null,null,null,null,null,null,null,"",null,null,"",null,null,null,null,null,""]
[null,null,null,null,null,null,null,null,null,null,null,"",null,null,"",null,null,null,null,null,""]
[null,null,null,null,null,null,null,null,null,null,null,"",null,null,"",null,null,null,null,null,""]
[null,null,null,null,null,null,null,null,null,null,null,"",null,null,"",null,null,null,null,null,""]
[null,null,null,null,null,null,null,null,null,null,null,"",null,null,"",null,null,null,null,null,""]
[null,null,null,null,null,null,null,null,null,null,null,"",null,null,"",null,null,null,null,null,""]
[null,null,null,null,null,null,null,null,null,null,null,"",null,null,"",null,null,null,null,null,""]
[null,null,null,null,null,null,null,null,null,null,null,"",null,null,"",null,null,null,null,null,""]
[null,null,null,null,null,null,null,null,null,null,null,"",null,null,"",null,null,null,null,null,""]
[null,null,null,null,null,null,null,null,null,null,null,"",null,null,"",null,null,null,null,null,""]
[null,null,null,null,null,null,null,null,null,null,null,"",null,null,"",null,null,null,null,null,""]
[null,null,null,null,null,null,null,null,null,null,null,"",null,null,"",null,null,null,null,null,""]
[null,null,null,null,null,null,null,null,null,null,null,"",null,null,"",null,null,null,null,null,""]
[null,null,null,null,null,null,null,null,null,null,null,"",null,null,"",null,null,null,null,null,""]
[null,null,null,null,null,null,null,null,null,null,null,"",null,null,"",null,null,null,null,null,""]
[null,null,null,null,null,null,null,null,null,null,null,"",null,null,"",null,null,null,null,null,""]
[null,null,null,null,null,null,null,null,null,null,null,"",null,null,"",null,null,null,null,null,""]
[null,null,null,null,null,null,null,null,null,null,null,"",null,null,"",null,null,null,null,null,""]
[null,null,null,null,null,null,null,null,null,null,null,"",null,null,"",null,null,null,null,null,""]
[null,null,null,null,null,null,null,null,null,null,null,"",null,null,"",null,null,null,null,null,""]
[null,null,null,null,null,null,null,null,null,null,null,"",null,null,"",null,null,null,null,null,""]
[null,null,null,null,null,null,null,null,null,null,null,"",null,null,"",null,null,null,null,null,""]
[null,null,null,null,null,null,null,null,null,null,null,"",null,null,"",null,null,null,null,null,""]
[null,null,null,null,null,null,null,null,null,null,null,"",null,null,"",null,null,null,null,null,""]
[null,null,null,null,null,null,null,null,null,null,null,"",null,null,"",null,null,null,null,null,""]
[null,null,null,null,null,null,null,null,null,null,null,"",null,null,"",null,null,null,null,null,""]
[null,null,null,null,null,null,null,null,null,null,null,"",null,null,"",null,null,null,null,null,""]
[null,null,null,null,null,null,null,null,null,null,null,"",null,null,"",null,null,null,null,null,""]
[null,null,null,null,null,null,null,null,null,null,null,"",null,null,"",null,null,null,null,null,""]
[null,null,null,null,null,null,null,null,null,null,null,"",null,null,"",null,null,null,null,null,""]
[null,null,null,null,null,null,null,null,null,null,null,{"$f":"CalculeDelai(B710, K710, J710)","v":""},null,null,{"$f":"CalculeDUA(B710, N710, M710)","v":""},null,null,null,null,null,{"$f":"CalculeDureeClassif(B710, T710, S710)","v":""}]
[null,null,null,null,null,null,null,null,null,null,null,"",null,null,"",null,null,null,null,null,""]
[null,null,null,null,null,null,null,null,null,null,null,"",null,null,"",null,null,null,null,null,""]
[null,null,null,null,null,null,null,null,null,null,null,"",null,null,"",null,null,null,null,null,""]
[null,null,null,null,null,null,null,null,null,null,null,"",null,null,"",null,null,null,null,null,""]
[null,null,null,null,null,null,null,null,null,null,null,"",null,null,"",null,null,null,null,null,""]
[null,null,null,null,null,null,null,null,null,null,null,"",null,null,"",null,null,null,null,null,""]
[null,null,null,null,null,null,null,null,null,null,null,"",null,null,"",null,null,null,null,null,""]
[null,null,null,null,null,null,null,null,null,null,null,"",null,null,"",null,null,null,null,null,""]
[null,null,null,null,null,null,null,null,null,null,null,"",null,null,"",null,null,null,null,null,""]
[null,null,null,null,null,null,null,null,null,null,null,"",null,null,"",null,null,null,null,null,""]
[null,null,null,null,null,null,null,null,null,null,null,"",null,null,"",null,null,null,null,null,""]
[null,null,null,null,null,null,null,null,null,null,null,"",null,null,"",null,null,null,null,null,""]
[null,null,null,null,null,null,null,null,null,null,null,"",null,null,"",null,null,null,null,null,""]
[null,null,null,null,null,null,null,null,null,null,null,"",null,null,"",null,null,null,null,null,""]
[null,null,null,null,null,null,null,null,null,null,null,"",null,null,"",null,null,null,null,null,""]
[null,null,null,null,null,null,null,null,null,null,null,"",null,null,"",null,null,null,null,null,""]
[null,null,null,null,null,null,null,null,null,null,null,"",null,null,"",null,null,null,null,null,""]
[null,null,null,null,null,null,null,null,null,null,null,"",null,null,"",null,null,null,null,null,""]
[null,null,null,null,null,null,null,null,null,null,null,"",null,null,"",null,null,null,null,null,""]
[null,null,null,null,null,null,null,null,null,null,null,"",null,null,"",null,null,null,null,null,""]
[null,null,null,null,null,null,null,null,null,null,null,"",null,null,"",null,null,null,null,null,""]
[null,null,null,null,null,null,null,null,null,null,null,"",null,null,"",null,null,null,null,null,""]
[null,null,null,null,null,null,null,null,null,null,null,"",null,null,"",null,null,null,null,null,""]
[null,null,null,null,null,null,null,null,null,null,null,"",null,null,"",null,null,null,null,null,""]
[null,null,null,null,null,null,null,null,null,null,null,"",null,null,"",null,null,null,null,null,""]
[null,null,null,null,null,null,null,null,null,null,null,"",null,null,"",null,null,null,null,null,""]
[null,null,null,null,null,null,null,null,null,null,null,"",null,null,"",null,null,null,null,null,""]
[null,null,null,null,null,null,null,null,null,null,null,"",null,null,"",null,null,null,null,null,""]
[null,null,null,null,null,null,null,null,null,null,null,"",null,null,"",null,null,null,null,null,""]
[null,null,null,null,null,null,null,null,null,null,null,"",null,null,"",null,null,null,null,null,""]
[null,null,null,null,null,null,null,null,null,null,null,"",null,null,"",null,null,null,null,null,""]
[null,null,null,null,null,null,null,null,null,null,null,"",null,null,"",null,null,null,null,null,""]
[null,null,null,null,null,null,null,null,null,null,null,"",null,null,"",null,null,null,null,null,""]
[null,null,null,null,null,null,null,null,null,null,null,"",null,null,"",null,null,null,null,null,""]
[null,null,null,null,null,null,null,null,null,null,null,"",null,null,"",null,null,null,null,null,""]
[null,null,null,null,null,null,null,null,null,null,null,"",null,null,"",null,null,null,null,null,""]
[null,null,null,null,null,null,null,null,null,null,null,"",null,null,"",null,null,null,null,null,""]
[null,null,null,null,null,null,null,null,null,null,null,"",null,null,"",null,null,null,null,null,""]
[null,null,null,null,null,null,null,null,null,null,null,"",null,null,"",null,null,null,null,null,""]
[null,null,null,null,null,null,null,null,null,null,null,"",null,null,"",null,null,null,null,null,""]
[null,null,null,null,null,null,null,null,null,null,null,"",null,null,"",null,null,null,null,null,""]
[null,null,null,null,null,null,null,null,null,null,null,"",null,null,"",null,null,null,null,null,""]
[null,null,null,null,null,null,null,null,null,null,null,"",null,null,"",null,null,null,null,null,""]
[null,null,null,null,null,null,null,null,null,null,null,"",null,null,"",null,null,null,null,null,""]
[null,null,null,null,null,null,null,null,null,null,null,"",null,null,"",null,null,null,null,null,""]
[null,null,null,null,null,null,null,null,null,null,null,"",null,null,"",null,null,null,null,null,""]
[null,null,null,null,null,null,null,null,null,null,null,"",null,null,"",null,null,null,null,null,""]
[null,null,null,null,null,null,null,null,null,null,null,"",null,null,"",null,null,null,null,null,""]
[null,null,null,null,null,null,null,null,null,null,null,"",null,null,"",null,null,null,null,null,""]
[null,null,null,null,null,null,null,null,null,null,null,"",null,null,"",null,null,null,null,null,""]
[null,null,null,null,null,null,null,null,null,null,null,"",null,null,"",null,null,null,null,null,""]
[null,null,null,null,null,null,null,null,null,null,null,"",null,null,"",null,null,null,null,null,""]
[null,null,null,null,null,null,null,null,null,null,null,"",null,null,"",null,null,null,null,null,""]
[null,null,null,null,null,null,null,null,null,null,null,"",null,null,"",null,null,null,null,null,""]
[null,null,null,null,null,null,null,null,null,null,null,"",null,null,"",null,null,null,null,null,""]
[null,null,null,null,null,null,null,null,null,null,null,"",null,null,"",null,null,null,null,null,""]
[null,null,null,null,null,null,null,null,null,null,null,"",null,null,"",null,null,null,null,null,""]
[null,null,null,null,null,null,null,null,null,null,null,"",null,null,"",null,null,null,null,null,""]
[null,null,null,null,null,null,null,null,null,null,null,"",null,null,"",null,null,null,null,null,""]
[null,null,null,null,null,null,null,null,null,null,null,"",null,null,"",null,null,null,null,null,""]
[null,null,null,null,null,null,null,null,null,null,null,"",null,null,"",null,null,null,null,null,""]
[null,null,null,null,null,null,null,null,null,null,null,"",null,null,"",null,null,null,null,null,""]
[null,null,null,null,null,null,null,null,null,null,null,"",null,null,"",null,null,null,null,null,""]
[null,null,null,null,null,null,null,null,null,null,null,{"$f":"CalculeDelai(B774, K774, J774)","v":""},null,null,{"$f":"CalculeDUA(B774, N774, M774)","v":""},null,null,null,null,null,{"$f":"CalculeDureeClassif(B774, T774, S774)","v":""}]
[null,null,null,null,null,null,null,null,null,null,null,"",null,null,"",null,null,null,null,null,""]
[null,null,null,null,null,null,null,null,null,null,null,"",null,null,"",null,null,null,null,null,""]
[null,null,null,null,null,null,null,null,null,null,null,"",null,null,"",null,null,null,null,null,""]
[null,null,null,null,null,null,null,null,null,null,null,"",null,null,"",null,null,null,null,null,""]
[null,null,null,null,null,null,null,null,null,null,null,"",null,null,"",null,null,null,null,null,""]
[null,null,null,null,null,null,null,null,null,null,null,"",null,null,"",null,null,null,null,null,""]
[null,null,null,null,null,null,null,null,null,null,null,"",null,null,"",null,null,null,null,null,""]
[null,null,null,null,null,null,null,null,null,null,null,"",null,null,"",null,null,null,null,null,""]
[null,null,null,null,null,null,null,null,null,null,null,"",null,null,"",null,null,null,null,null,""]
[null,null,null,null,null,null,null,null,null,null,null,"",null,null,"",null,null,null,null,null,""]
[null,null,null,null,null,null,null,null,null,null,null,"",null,null,"",null,null,null,null,null,""]
[null,null,null,null,null,null,null,null,null,null,null,"",null,null,"",null,null,null,null,null,""]
[null,null,null,null,null,null,null,null,null,null,null,"",null,null,"",null,null,null,null,null,""]
[null,null,null,null,null,null,null,null,null,null,null,"",null,null,"",null,null,null,null,null,""]
[null,null,null,null,null,null,null,null,null,null,null,"",null,null,"",null,null,null,null,null,""]
[null,null,null,null,null,null,null,null,null,null,null,"",null,null,"",null,null,null,null,null,""]
[null,null,null,null,null,null,null,null,null,null,null,"",null,null,"",null,null,null,null,null,""]
[null,null,null,null,null,null,null,null,null,null,null,"",null,null,"",null,null,null,null,null,""]
[null,null,null,null,null,null,null,null,null,null,null,"",null,null,"",null,null,null,null,null,""]
[null,null,null,null,null,null,null,null,null,null,null,"",null,null,"",null,null,null,null,null,""]
[null,null,null,null,null,null,null,null,null,null,null,"",null,null,"",null,null,null,null,null,""]
[null,null,null,null,null,null,null,null,null,null,null,"",null,null,"",null,null,null,null,null,""]
[null,null,null,null,null,null,null,null,null,null,null,"",null,null,"",null,null,null,null,null,""]
[null,null,null,null,null,null,null,null,null,null,null,"",null,null,"",null,null,null,null,null,""]
[null,null,null,null,null,null,null,null,null,null,null,"",null,null,"",null,null,null,null,null,""]
[null,null,null,null,null,null,null,null,null,null,null,"",null,null,"",null,null,null,null,null,""]
[null,null,null,null,null,null,null,null,null,null,null,"",null,null,"",null,null,null,null,null,""]
[null,null,null,null,null,null,null,null,null,null,null,"",null,null,"",null,null,null,null,null,""]
[null,null,null,null,null,null,null,null,null,null,null,"",null,null,"",null,null,null,null,null,""]
[null,null,null,null,null,null,null,null,null,null,null,"",null,null,"",null,null,null,null,null,""]
[null,null,null,null,null,null,null,null,null,null,null,"",null,null,"",null,null,null,null,null,""]
[null,null,null,null,null,null,null,null,null,null,null,"",null,null,"",null,null,null,null,null,""]
[null,null,null,null,null,null,null,null,null,null,null,"",null,null,"",null,null,null,null,null,""]
[null,null,null,null,null,null,null,null,null,null,null,"",null,null,"",null,null,null,null,null,""]
[null,null,null,null,null,null,null,null,null,null,null,"",null,null,"",null,null,null,null,null,""]
[null,null,null,null,null,null,null,null,null,null,null,"",null,null,"",null,null,null,null,null,""]
[null,null,null,null,null,null,null,null,null,null,null,"",null,null,"",null,null,null,null,null,""]
[null,null,null,null,null,null,null,null,null,null,null,"",null,null,"",null,null,null,null,null,""]
[null,null,null,null,null,null,null,null,null,null,null,"",null,null,"",null,null,null,null,null,""]
[null,null,null,null,null,null,null,null,null,null,null,"",null,null,"",null,null,null,null,null,""]
[null,null,null,null,null,null,null,null,null,null,null,"",null,null,"",null,null,null,null,null,""]
[null,null,null,null,null,null,null,null,null,null,null,"",null,null,"",null,null,null,null,null,""]
[null,null,null,null,null,null,null,null,null,null,null,"",null,null,"",null,null,null,null,null,""]
[null,null,null,null,null,null,null,null,null,null,null,"",null,null,"",null,null,null,null,null,""]
[null,null,null,null,null,null,null,null,null,null,null,"",null,null,"",null,null,null,null,null,""]
[null,null,null,null,null,null,null,null,null,null,null,"",null,null,"",null,null,null,null,null,""]
[null,null,null,null,null,null,null,null,null,null,null,"",null,null,"",null,null,null,null,null,""]
[null,null,null,null,null,null,null,null,null,null,null,"",null,null,"",null,null,null,null,null,""]
[null,null,null,null,null,null,null,null,null,null,null,"",null,null,"",null,null,null,null,null,""]
[null,null,null,null,null,null,null,null,null,null,null,"",null,null,"",null,null,null,null,null,""]
[null,null,null,null,null,null,null,null,null,null,null,"",null,null,"",null,null,null,null,null,""]
[null,null,null,null,null,null,null,null,null,null,null,"",null,null,"",null,null,null,null,null,""]
[null,null,null,null,null,null,null,null,null,null,null,"",null,null,"",null,null,null,null,null,""]
[null,null,null,null,null,null,null,null,null,null,null,"",null,null,"",null,null,null,null,null,""]
[null,null,null,null,null,null,null,null,null,null,null,"",null,null,"",null,null,null,null,null,""]
[null,null,null,null,null,null,null,null,null,null,null,"",null,null,"",null,null,null,null,null,""]
[null,null,null,null,null,null,null,null,null,null,null,"",null,null,"",null,null,null,null,null,""]
[null,null,null,null,null,null,null,null,null,null,null,"",null,null,"",null,null,null,null,null,""]
[null,null,null,null,null,null,null,null,null,null,null,"",null,null,"",null,null,null,null,null,""]
[null,null,null,null,null,null,null,null,null,null,null,"",null,null,"",null,null,null,null,null,""]
[null,null,null,null,null,null,null,null,null,null,null,"",null,null,"",null,null,null,null,null,""]
[null,null,null,null,null,null,null,null,null,null,null,"",null,null,"",null,null,null,null,null,""]
[null,null,null,null,null,null,null,null,null,null,null,"",null,null,"",null,null,null,null,null,""]
[null,null,null,null,null,null,null,null,null,null,null,{"$f":"CalculeDelai(B838, K838, J838)","v":""},null,null,{"$f":"CalculeDUA(B838, N838, M838)","v":""},null,null,null,null,null,{"$f":"CalculeDureeClassif(B838, T838, S838)","v":""}]
[null,null,null,null,null,null,null,null,null,null,null,"",null,null,"",null,null,null,null,null,""]
[null,null,null,null,null,null,null,null,null,null,null,"",null,null,"",null,null,null,null,null,""]
[null,null,null,null,null,null,null,null,null,null,null,"",null,null,"",null,null,null,null,null,""]
[null,null,null,null,null,null,null,null,null,null,null,"",null,null,"",null,null,null,null,null,""]
[null,null,null,null,null,null,null,null,null,null,null,"",null,null,"",null,null,null,null,null,""]
[null,null,null,null,null,null,null,null,null,null,null,"",null,null,"",null,null,null,null,null,""]
[null,null,null,null,null,null,null,null,null,null,null,"",null,null,"",null,null,null,null,null,""]
[null,null,null,null,null,null,null,null,null,null,null,"",null,null,"",null,null,null,null,null,""]
[null,null,null,null,null,null,null,null,null,null,null,"",null,null,"",null,null,null,null,null,""]
[null,null,null,null,null,null,null,null,null,null,null,"",null,null,"",null,null,null,null,null,""]
[null,null,null,null,null,null,null,null,null,null,null,"",null,null,"",null,null,null,null,null,""]
[null,null,null,null,null,null,null,null,null,null,null,"",null,null,"",null,null,null,null,null,""]
[null,null,null,null,null,null,null,null,null,null,null,"",null,null,"",null,null,null,null,null,""]
[null,null,null,null,null,null,null,null,null,null,null,"",null,null,"",null,null,null,null,null,""]
[null,null,null,null,null,null,null,null,null,null,null,"",null,null,"",null,null,null,null,null,""]
[null,null,null,null,null,null,null,null,null,null,null,"",null,null,"",null,null,null,null,null,""]
[null,null,null,null,null,null,null,null,null,null,null,"",null,null,"",null,null,null,null,null,""]
[null,null,null,null,null,null,null,null,null,null,null,"",null,null,"",null,null,null,null,null,""]
[null,null,null,null,null,null,null,null,null,null,null,"",null,null,"",null,null,null,null,null,""]
[null,null,null,null,null,null,null,null,null,null,null,"",null,null,"",null,null,null,null,null,""]
[null,null,null,null,null,null,null,null,null,null,null,"",null,null,"",null,null,null,null,null,""]
[null,null,null,null,null,null,null,null,null,null,null,"",null,null,"",null,null,null,null,null,""]
[null,null,null,null,null,null,null,null,null,null,null,"",null,null,"",null,null,null,null,null,""]
[null,null,null,null,null,null,null,null,null,null,null,"",null,null,"",null,null,null,null,null,""]
[null,null,null,null,null,null,null,null,null,null,null,"",null,null,"",null,null,null,null,null,""]
[null,null,null,null,null,null,null,null,null,null,null,"",null,null,"",null,null,null,null,null,""]
[null,null,null,null,null,null,null,null,null,null,null,"",null,null,"",null,null,null,null,null,""]
[null,null,null,null,null,null,null,null,null,null,null,"",null,null,"",null,null,null,null,null,""]
[null,null,null,null,null,null,null,null,null,null,null,"",null,null,"",null,null,null,null,null,""]
[null,null,null,null,null,null,null,null,null,null,null,"",null,null,"",null,null,null,null,null,""]
[null,null,null,null,null,null,null,null,null,null,null,"",null,null,"",null,null,null,null,null,""]
[null,null,null,null,null,null,null,null,null,null,null,"",null,null,"",null,null,null,null,null,""]
[null,null,null,null,null,null,null,null,null,null,null,"",null,null,"",null,null,null,null,null,""]
[null,null,null,null,null,null,null,null,null,null,null,"",null,null,"",null,null,null,null,null,""]
[null,null,null,null,null,null,null,null,null,null,null,"",null,null,"",null,null,null,null,null,""]
[null,null,null,null,null,null,null,null,null,null,null,"",null,null,"",null,null,null,null,null,""]
[null,null,null,null,null,null,null,null,null,null,null,"",null,null,"",null,null,null,null,null,""]
[null,null,null,null,null,null,null,null,null,null,null,"",null,null,"",null,null,null,null,null,""]
[null,null,null,null,null,null,null,null,null,null,null,"",null,null,"",null,null,null,null,null,""]
[null,null,null,null,null,null,null,null,null,null,null,"",null,null,"",null,null,null,null,null,""]
[null,null,null,null,null,null,null,null,null,null,null,"",null,null,"",null,null,null,null,null,""]
[null,null,null,null,null,null,null,null,null,null,null,"",null,null,"",null,null,null,null,null,""]
[null,null,null,null,null,null,null,null,null,null,null,"",null,null,"",null,null,null,null,null,""]
[null,null,null,null,null,null,null,null,null,null,null,"",null,null,"",null,null,null,null,null,""]
[null,null,null,null,null,null,null,null,null,null,null,"",null,null,"",null,null,null,null,null,""]
[null,null,null,null,null,null,null,null,null,null,null,"",null,null,"",null,null,null,null,null,""]
[null,null,null,null,null,null,null,null,null,null,null,"",null,null,"",null,null,null,null,null,""]
[null,null,null,null,null,null,null,null,null,null,null,"",null,null,"",null,null,null,null,null,""]
[null,null,null,null,null,null,null,null,null,null,null,"",null,null,"",null,null,null,null,null,""]
[null,null,null,null,null,null,null,null,null,null,null,"",null,null,"",null,null,null,null,null,""]
[null,null,null,null,null,null,null,null,null,null,null,"",null,null,"",null,null,null,null,null,""]
[null,null,null,null,null,null,null,null,null,null,null,"",null,null,"",null,null,null,null,null,""]
[null,null,null,null,null,null,null,null,null,null,null,"",null,null,"",null,null,null,null,null,""]
[null,null,null,null,null,null,null,null,null,null,null,"",null,null,"",null,null,null,null,null,""]
[null,null,null,null,null,null,null,null,null,null,null,"",null,null,"",null,null,null,null,null,""]
[null,null,null,null,null,null,null,null,null,null,null,"",null,null,"",null,null,null,null,null,""]
[null,null,null,null,null,null,null,null,null,null,null,"",null,null,"",null,null,null,null,null,""]
[null,null,null,null,null,null,null,null,null,null,null,"",null,null,"",null,null,null,null,null,""]
[null,null,null,null,null,null,null,null,null,null,null,"",null,null,"",null,null,null,null,null,""]
[null,null,null,null,null,null,null,null,null,null,null,"",null,null,"",null,null,null,null,null,""]
[null,null,null,null,null,null,null,null,null,null,null,"",null,null,"",null,null,null,null,null,""]
[null,null,null,null,null,null,null,null,null,null,null,"",null,null,"",null,null,null,null,null,""]
[null,null,null,null,null,null,null,null,null,null,null,"",null,null,"",null,null,null,null,null,""]
[null,null,null,null,null,null,null,null,null,null,null,{"$f":"CalculeDelai(B902, K902, J902)","v":""},null,null,{"$f":"CalculeDUA(B902, N902, M902)","v":""},null,null,null,null,null,{"$f":"CalculeDureeClassif(B902, T902, S902)","v":""}]
[null,null,null,null,null,null,null,null,null,null,null,"",null,null,"",null,null,null,null,null,""]
[null,null,null,null,null,null,null,null,null,null,null,"",null,null,"",null,null,null,null,null,""]
[null,null,null,null,null,null,null,null,null,null,null,"",null,null,"",null,null,null,null,null,""]
[null,null,null,null,null,null,null,null,null,null,null,"",null,null,"",null,null,null,null,null,""]
[null,null,null,null,null,null,null,null,null,null,null,"",null,null,"",null,null,null,null,null,""]
[null,null,null,null,null,null,null,null,null,null,null,"",null,null,"",null,null,null,null,null,""]
[null,null,null,null,null,null,null,null,null,null,null,"",null,null,"",null,null,null,null,null,""]
[null,null,null,null,null,null,null,null,null,null,null,"",null,null,"",null,null,null,null,null,""]
[null,null,null,null,null,null,null,null,null,null,null,"",null,null,"",null,null,null,null,null,""]
[null,null,null,null,null,null,null,null,null,null,null,"",null,null,"",null,null,null,null,null,""]
[null,null,null,null,null,null,null,null,null,null,null,"",null,null,"",null,null,null,null,null,""]
[null,null,null,null,null,null,null,null,null,null,null,"",null,null,"",null,null,null,null,null,""]
[null,null,null,null,null,null,null,null,null,null,null,"",null,null,"",null,null,null,null,null,""]
[null,null,null,null,null,null,null,null,null,null,null,"",null,null,"",null,null,null,null,null,""]
[null,null,null,null,null,null,null,null,null,null,null,"",null,null,"",null,null,null,null,null,""]
[null,null,null,null,null,null,null,null,null,null,null,"",null,null,"",null,null,null,null,null,""]
[null,null,null,null,null,null,null,null,null,null,null,"",null,null,"",null,null,null,null,null,""]
[null,null,null,null,null,null,null,null,null,null,null,"",null,null,"",null,null,null,null,null,""]
[null,null,null,null,null,null,null,null,null,null,null,"",null,null,"",null,null,null,null,null,""]
[null,null,null,null,null,null,null,null,null,null,null,"",null,null,"",null,null,null,null,null,""]
[null,null,null,null,null,null,null,null,null,null,null,"",null,null,"",null,null,null,null,null,""]
[null,null,null,null,null,null,null,null,null,null,null,"",null,null,"",null,null,null,null,null,""]
[null,null,null,null,null,null,null,null,null,null,null,"",null,null,"",null,null,null,null,null,""]
[null,null,null,null,null,null,null,null,null,null,null,"",null,null,"",null,null,null,null,null,""]
[null,null,null,null,null,null,null,null,null,null,null,"",null,null,"",null,null,null,null,null,""]
[null,null,null,null,null,null,null,null,null,null,null,"",null,null,"",null,null,null,null,null,""]
[null,null,null,null,null,null,null,null,null,null,null,"",null,null,"",null,null,null,null,null,""]
[null,null,null,null,null,null,null,null,null,null,null,"",null,null,"",null,null,null,null,null,""]
[null,null,null,null,null,null,null,null,null,null,null,"",null,null,"",null,null,null,null,null,""]
[null,null,null,null,null,null,null,null,null,null,null,"",null,null,"",null,null,null,null,null,""]
[null,null,null,null,null,null,null,null,null,null,null,"",null,null,"",null,null,null,null,null,""]
[null,null,null,null,null,null,null,null,null,null,null,"",null,null,"",null,null,null,null,null,""]
[null,null,null,null,null,null,null,null,null,null,null,"",null,null,"",null,null,null,null,null,""]
[null,null,null,null,null,null,null,null,null,null,null,"",null,null,"",null,null,null,null,null,""]
[null,null,null,null,null,null,null,null,null,null,null,"",null,null,"",null,null,null,null,null,""]
[null,null,null,null,null,null,null,null,null,null,null,"",null,null,"",null,null,null,null,null,""]
[null,null,null,null,null,null,null,null,null,null,null,"",null,null,"",null,null,null,null,null,""]
[null,null,null,null,null,null,null,null,null,null,null,"",null,null,"",null,null,null,null,null,""]
[null,null,null,null,null,null,null,null,null,null,null,"",null,null,"",null,null,null,null,null,""]
[null,null,null,null,null,null,null,null,null,null,null,"",null,null,"",null,null,null,null,null,""]
[null,null,null,null,null,null,null,null,null,null,null,"",null,null,"",null,null,null,null,null,""]
[null,null,null,null,null,null,null,null,null,null,null,"",null,null,"",null,null,null,null,null,""]
[null,null,null,null,null,null,null,null,null,null,null,"",null,null,"",null,null,null,null,null,""]
[null,null,null,null,null,null,null,null,null,null,null,"",null,null,"",null,null,null,null,null,""]
[null,null,null,null,null,null,null,null,null,null,null,"",null,null,"",null,null,null,null,null,""]
[null,null,null,null,null,null,null,null,null,null,null,"",null,null,"",null,null,null,null,null,""]
[null,null,null,null,null,null,null,null,null,null,null,"",null,null,"",null,null,null,null,null,""]
[null,null,null,null,null,null,null,null,null,null,null,"",null,null,"",null,null,null,null,null,""]
[null,null,null,null,null,null,null,null,null,null,null,"",null,null,"",null,null,null,null,null,""]
[null,null,null,null,null,null,null,null,null,null,null,"",null,null,"",null,null,null,null,null,""]
[null,null,null,null,null,null,null,null,null,null,null,"",null,null,"",null,null,null,null,null,""]
[null,null,null,null,null,null,null,null,null,null,null,"",null,null,"",null,null,null,null,null,""]
[null,null,null,null,null,null,null,null,null,null,null,"",null,null,"",null,null,null,null,null,""]
[null,null,null,null,null,null,null,null,null,null,null,"",null,null,"",null,null,null,null,null,""]
[null,null,null,null,null,null,null,null,null,null,null,"",null,null,"",null,null,null,null,null,""]
[null,null,null,null,null,null,null,null,null,null,null,"",null,null,"",null,null,null,null,null,""]
[null,null,null,null,null,null,null,null,null,null,null,"",null,null,"",null,null,null,null,null,""]
[null,null,null,null,null,null,null,null,null,null,null,"",null,null,"",null,null,null,null,null,""]
[null,null,null,null,null,null,null,null,null,null,null,"",null,null,"",null,null,null,null,null,""]
[null,null,null,null,null,null,null,null,null,null,null,"",null,null,"",null,null,null,null,null,""]
[null,null,null,null,null,null,null,null,null,null,null,"",null,null,"",null,null,null,null,null,""]
[null,null,null,null,null,null,null,null,null,null,null,"",null,null,"",null,null,null,null,null,""]
[null,null,null,null,null,null,null,null,null,null,null,"",null,null,"",null,null,null,null,null,""]
[null,null,null,null,null,null,null,null,null,null,null,{"$f":"CalculeDelai(B966, K966, J966)","v":""},null,null,{"$f":"CalculeDUA(B966, N966, M966)","v":""},null,null,null,null,null,{"$f":"CalculeDureeClassif(B966, T966, S966)","v":""}]
[null,null,null,null,null,null,null,null,null,null,null,"",null,null,"",null,null,null,null,null,""]
[null,null,null,null,null,null,null,null,null,null,null,"",null,null,"",null,null,null,null,null,""]
[null,null,null,null,null,null,null,null,null,null,null,"",null,null,"",null,null,null,null,null,""]
[null,null,null,null,null,null,null,null,null,null,null,"",null,null,"",null,null,null,null,null,""]
[null,null,null,null,null,null,null,null,null,null,null,"",null,null,"",null,null,null,null,null,""]
[null,null,null,null,null,null,null,null,null,null,null,"",null,null,"",null,null,null,null,null,""]
[null,null,null,null,null,null,null,null,null,null,null,"",null,null,"",null,null,null,null,null,""]
[null,null,null,null,null,null,null,null,null,null,null,"",null,null,"",null,null,null,null,null,""]
[null,null,null,null,null,null,null,null,null,null,null,"",null,null,"",null,null,null,null,null,""]
[null,null,null,null,null,null,null,null,null,null,null,"",null,null,"",null,null,null,null,null,""]
[null,null,null,null,null,null,null,null,null,null,null,"",null,null,"",null,null,null,null,null,""]
[null,null,null,null,null,null,null,null,null,null,null,"",null,null,"",null,null,null,null,null,""]
[null,null,null,null,null,null,null,null,null,null,null,"",null,null,"",null,null,null,null,null,""]
[null,null,null,null,null,null,null,null,null,null,null,"",null,null,"",null,null,null,null,null,""]
[null,null,null,null,null,null,null,null,null,null,null,"",null,null,"",null,null,null,null,null,""]
[null,null,null,null,null,null,null,null,null,null,null,"",null,null,"",null,null,null,null,null,""]
[null,null,null,null,null,null,null,null,null,null,null,"",null,null,"",null,null,null,null,null,""]
[null,null,null,null,null,null,null,null,null,null,null,"",null,null,"",null,null,null,null,null,""]
[null,null,null,null,null,null,null,null,null,null,null,"",null,null,"",null,null,null,null,null,""]
[null,null,null,null,null,null,null,null,null,null,null,"",null,null,"",null,null,null,null,null,""]
[null,null,null,null,null,null,null,null,null,null,null,"",null,null,"",null,null,null,null,null,""]
[null,null,null,null,null,null,null,null,null,null,null,"",null,null,"",null,null,null,null,null,""]
[null,null,null,null,null,null,null,null,null,null,null,"",null,null,"",null,null,null,null,null,""]
[null,null,null,null,null,null,null,null,null,null,null,"",null,null,"",null,null,null,null,null,""]
[null,null,null,null,null,null,null,null,null,null,null,"",null,null,"",null,null,null,null,null,""]
[null,null,null,null,null,null,null,null,null,null,null,"",null,null,"",null,null,null,null,null,""]
[null,null,null,null,null,null,null,null,null,null,null,"",null,null,"",null,null,null,null,null,""]
[null,null,null,null,null,null,null,null,null,null,null,"",null,null,"",null,null,null,null,null,""]
[null,null,null,null,null,null,null,null,null,null,null,"",null,null,"",null,null,null,null,null,""]
[null,null,null,null,null,null,null,null,null,null,null,"",null,null,"",null,null,null,null,null,""]
[null,null,null,null,null,null,null,null,null,null,null,"",null,null,"",null,null,null,null,null,""]
[null,null,null,null,null,null,null,null,null,null,null,"",null,null,"",null,null,null,null,null,""]
[null,null,null,null,null,null,null,null,null,null,null,"",null,null,"",null,null,null,null,null,""]
[null,null,null,null,null,null,null,null,null,null,null,"",null,null,"",null,null,null,null,null,""]
[null,null,null,null,null,null,null,null,null,null,null,"",null,null,"",null,null,null,null,null,""]
[null,null,null,null,null,null,null,null,null,null,null,"",null,null,"",null,null,null,null,null,""]
[null,null,null,null,null,null,null,null,null,null,null,"",null,null,"",null,null,null,null,null,""]
[null,null,null,null,null,null,null,null,null,null,null,"",null,null,"",null,null,null,null,null,""]
[null,null,null,null,null,null,null,null,null,null,null,"",null,null,"",null,null,null,null,null,""]
[null,null,null,null,null,null,null,null,null,null,null,"",null,null,"",null,null,null,null,null,""]
[null,null,null,null,null,null,null,null,null,null,null,"",null,null,"",null,null,null,null,null,""]
[null,null,null,null,null,null,null,null,null,null,null,"",null,null,"",null,null,null,null,null,""]
[null,null,null,null,null,null,null,null,null,null,null,"",null,null,"",null,null,null,null,null,""]
[null,null,null,null,null,null,null,null,null,null,null,"",null,null,"",null,null,null,null,null,""]
[null,null,null,null,null,null,null,null,null,null,null,"",null,null,"",null,null,null,null,null,""]
[null,null,null,null,null,null,null,null,null,null,null,"",null,null,"",null,null,null,null,null,""]
[null,null,null,null,null,null,null,null,null,null,null,"",null,null,"",null,null,null,null,null,""]
[null,null,null,null,null,null,null,null,null,null,null,"",null,null,"",null,null,null,null,null,""]
[null,null,null,null,null,null,null,null,null,null,null,"",null,null,"",null,null,null,null,null,""]
[null,null,null,null,null,null,null,null,null,null,null,"",null,null,"",null,null,null,null,null,""]
[null,null,null,null,null,null,null,null,null,null,null,"",null,null,"",null,null,null,null,null,""]
[null,null,null,null,null,null,null,null,null,null,null,"",null,null,"",null,null,null,null,null,""]
[null,null,null,null,null,null,null,null,null,null,null,"",null,null,"",null,null,null,null,null,""]
[null,null,null,null,null,null,null,null,null,null,null,"",null,null,"",null,null,null,null,null,""]
[null,null,null,null,null,null,null,null,null,null,null,"",null,null,"",null,null,null,null,null,""]
[null,null,null,null,null,null,null,null,null,null,null,"",null,null,"",null,null,null,null,null,""]
[null,null,null,null,null,null,null,null,null,null,null,"",null,null,"",null,null,null,null,null,""]
[null,null,null,null,null,null,null,null,null,null,null,"",null,null,"",null,null,null,null,null,""]
[null,null,null,null,null,null,null,null,null,null,null,"",null,null,"",null,null,null,null,null,""]
[null,null,null,null,null,null,null,null,null,null,null,"",null,null,"",null,null,null,null,null,""]
[null,null,null,null,null,null,null,null,null,null,null,"",null,null,"",null,null,null,null,null,""]
[null,null,null,null,null,null,null,null,null,null,null,"",null,null,"",null,null,null,null,null,""]
[null,null,null,null,null,null,null,null,null,null,null,"",null,null,"",null,null,null,null,null,""]
[null,null,null,null,null,null,null,null,null,null,null,{"$f":"CalculeDelai(B1030, K1030, J1030)","v":""},null,null,{"$f":"CalculeDUA(B1030, N1030, M1030)","v":""},null,null,null,null,null,{"$f":"CalculeDureeClassif(B1030, T1030, S1030)","v":""}]
[null,null,null,null,null,null,null,null,null,null,null,"",null,null,"",null,null,null,null,null,""]
[null,null,null,null,null,null,null,null,null,null,null,"",null,null,"",null,null,null,null,null,""]
[null,null,null,null,null,null,null,null,null,null,null,"",null,null,"",null,null,null,null,null,""]
[null,null,null,null,null,null,null,null,null,null,null,"",null,null,"",null,null,null,null,null,""]
[null,null,null,null,null,null,null,null,null,null,null,"",null,null,"",null,null,null,null,null,""]
[null,null,null,null,null,null,null,null,null,null,null,"",null,null,"",null,null,null,null,null,""]
[null,null,null,null,null,null,null,null,null,null,null,"",null,null,"",null,null,null,null,null,""]
[null,null,null,null,null,null,null,null,null,null,null,"",null,null,"",null,null,null,null,null,""]
[null,null,null,null,null,null,null,null,null,null,null,"",null,null,"",null,null,null,null,null,""]
[null,null,null,null,null,null,null,null,null,null,null,"",null,null,"",null,null,null,null,null,""]
[null,null,null,null,null,null,null,null,null,null,null,"",null,null,"",null,null,null,null,null,""]
[null,null,null,null,null,null,null,null,null,null,null,"",null,null,"",null,null,null,null,null,""]
[null,null,null,null,null,null,null,null,null,null,null,"",null,null,"",null,null,null,null,null,""]
[null,null,null,null,null,null,null,null,null,null,null,"",null,null,"",null,null,null,null,null,""]
[null,null,null,null,null,null,null,null,null,null,null,"",null,null,"",null,null,null,null,null,""]
[null,null,null,null,null,null,null,null,null,null,null,"",null,null,"",null,null,null,null,null,""]
[null,null,null,null,null,null,null,null,null,null,null,"",null,null,"",null,null,null,null,null,""]
[null,null,null,null,null,null,null,null,null,null,null,"",null,null,"",null,null,null,null,null,""]
[null,null,null,null,null,null,null,null,null,null,null,"",null,null,"",null,null,null,null,null,""]
[null,null,null,null,null,null,null,null,null,null,null,"",null,null,"",null,null,null,null,null,""]
[null,null,null,null,null,null,null,null,null,null,null,"",null,null,"",null,null,null,null,null,""]
[null,null,null,null,null,null,null,null,null,null,null,"",null,null,"",null,null,null,null,null,""]
[null,null,null,null,null,null,null,null,null,null,null,"",null,null,"",null,null,null,null,null,""]
[null,null,null,null,null,null,null,null,null,null,null,"",null,null,"",null,null,null,null,null,""]
[null,null,null,null,null,null,null,null,null,null,null,"",null,null,"",null,null,null,null,null,""]
[null,null,null,null,null,null,null,null,null,null,null,"",null,null,"",null,null,null,null,null,""]
[null,null,null,null,null,null,null,null,null,null,null,"",null,null,"",null,null,null,null,null,""]
[null,null,null,null,null,null,null,null,null,null,null,"",null,null,"",null,null,null,null,null,""]
[null,null,null,null,null,null,null,null,null,null,null,"",null,null,"",null,null,null,null,null,""]
[null,null,null,null,null,null,null,null,null,null,null,"",null,null,"",null,null,null,null,null,""]
[null,null,null,null,null,null,null,null,null,null,null,"",null,null,"",null,null,null,null,null,""]
[null,null,null,null,null,null,null,null,null,null,null,"",null,null,"",null,null,null,null,null,""]
[null,null,null,null,null,null,null,null,null,null,null,"",null,null,"",null,null,null,null,null,""]
[null,null,null,null,null,null,null,null,null,null,null,"",null,null,"",null,null,null,null,null,""]
[null,null,null,null,null,null,null,null,null,null,null,"",null,null,"",null,null,null,null,null,""]
[null,null,null,null,null,null,null,null,null,null,null,"",null,null,"",null,null,null,null,null,""]
[null,null,null,null,null,null,null,null,null,null,null,"",null,null,"",null,null,null,null,null,""]
[null,null,null,null,null,null,null,null,null,null,null,"",null,null,"",null,null,null,null,null,""]
[null,null,null,null,null,null,null,null,null,null,null,"",null,null,"",null,null,null,null,null,""]
[null,null,null,null,null,null,null,null,null,null,null,"",null,null,"",null,null,null,null,null,""]
[null,null,null,null,null,null,null,null,null,null,null,"",null,null,"",null,null,null,null,null,""]
[null,null,null,null,null,null,null,null,null,null,null,"",null,null,"",null,null,null,null,null,""]
[null,null,null,null,null,null,null,null,null,null,null,"",null,null,"",null,null,null,null,null,""]
[null,null,null,null,null,null,null,null,null,null,null,"",null,null,"",null,null,null,null,null,""]
[null,null,null,null,null,null,null,null,null,null,null,"",null,null,"",null,null,null,null,null,""]
[null,null,null,null,null,null,null,null,null,null,null,"",null,null,"",null,null,null,null,null,""]
[null,null,null,null,null,null,null,null,null,null,null,"",null,null,"",null,null,null,null,null,""]
[null,null,null,null,null,null,null,null,null,null,null,"",null,null,"",null,null,null,null,null,""]
[null,null,null,null,null,null,null,null,null,null,null,"",null,null,"",null,null,null,null,null,""]
[null,null,null,null,null,null,null,null,null,null,null,"",null,null,"",null,null,null,null,null,""]
[null,null,null,null,null,null,null,null,null,null,null,"",null,null,"",null,null,null,null,null,""]
[null,null,null,null,null,null,null,null,null,null,null,"",null,null,"",null,null,null,null,null,""]
[null,null,null,null,null,null,null,null,null,null,null,"",null,null,"",null,null,null,null,null,""]
[null,null,null,null,null,null,null,null,null,null,null,"",null,null,"",null,null,null,null,null,""]
[null,null,null,null,null,null,null,null,null,null,null,"",null,null,"",null,null,null,null,null,""]
[null,null,null,null,null,null,null,null,null,null,null,"",null,null,"",null,null,null,null,null,""]
[null,null,null,null,null,null,null,null,null,null,null,"",null,null,"",null,null,null,null,null,""]
[null,null,null,null,null,null,null,null,null,null,null,"",null,null,"",null,null,null,null,null,""]
[null,null,null,null,null,null,null,null,null,null,null,"",null,null,"",null,null,null,null,null,""]
[null,null,null,null,null,null,null,null,null,null,null,"",null,null,"",null,null,null,null,null,""]
[null,null,null,null,null,null,null,null,null,null,null,"",null,null,"",null,null,null,null,null,""]
[null,null,null,null,null,null,null,null,null,null,null,"",null,null,"",null,null,null,null,null,""]
[null,null,null,null,null,null,null,null,null,null,null,"",null,null,"",null,null,null,null,null,""]
[null,null,null,null,null,null,null,null,null,null,null,{"$f":"CalculeDelai(B1094, K1094, J1094)","v":""},null,null,{"$f":"CalculeDUA(B1094, N1094, M1094)","v":""},null,null,null,null,null,{"$f":"CalculeDureeClassif(B1094, T1094, S1094)","v":""}]
[null,null,null,null,null,null,null,null,null,null,null,"",null,null,"",null,null,null,null,null,""]
[null,null,null,null,null,null,null,null,null,null,null,"",null,null,"",null,null,null,null,null,""]
[null,null,null,null,null,null,null,null,null,null,null,"",null,null,"",null,null,null,null,null,""]
[null,null,null,null,null,null,null,null,null,null,null,"",null,null,"",null,null,null,null,null,""]
[null,null,null,null,null,null,null,null,null,null,null,"",null,null,"",null,null,null,null,null,""]
[null,null,null,null,null,null,null,null,null,null,null,"",null,null,"",null,null,null,null,null,""]
[null,null,null,null,null,null,null,null,null,null,null,"",null,null,"",null,null,null,null,null,""]
[null,null,null,null,null,null,null,null,null,null,null,"",null,null,"",null,null,null,null,null,""]
[null,null,null,null,null,null,null,null,null,null,null,"",null,null,"",null,null,null,null,null,""]
[null,null,null,null,null,null,null,null,null,null,null,"",null,null,"",null,null,null,null,null,""]
[null,null,null,null,null,null,null,null,null,null,null,"",null,null,"",null,null,null,null,null,""]
[null,null,null,null,null,null,null,null,null,null,null,"",null,null,"",null,null,null,null,null,""]
[null,null,null,null,null,null,null,null,null,null,null,"",null,null,"",null,null,null,null,null,""]
[null,null,null,null,null,null,null,null,null,null,null,"",null,null,"",null,null,null,null,null,""]
[null,null,null,null,null,null,null,null,null,null,null,"",null,null,"",null,null,null,null,null,""]
[null,null,null,null,null,null,null,null,null,null,null,"",null,null,"",null,null,null,null,null,""]
[null,null,null,null,null,null,null,null,null,null,null,"",null,null,"",null,null,null,null,null,""]
[null,null,null,null,null,null,null,null,null,null,null,"",null,null,"",null,null,null,null,null,""]
[null,null,null,null,null,null,null,null,null,null,null,"",null,null,"",null,null,null,null,null,""]
[null,null,null,null,null,null,null,null,null,null,null,"",null,null,"",null,null,null,null,null,""]
[null,null,null,null,null,null,null,null,null,null,null,"",null,null,"",null,null,null,null,null,""]
[null,null,null,null,null,null,null,null,null,null,null,"",null,null,"",null,null,null,null,null,""]
[null,null,null,null,null,null,null,null,null,null,null,"",null,null,"",null,null,null,null,null,""]
[null,null,null,null,null,null,null,null,null,null,null,"",null,null,"",null,null,null,null,null,""]
[null,null,null,null,null,null,null,null,null,null,null,"",null,null,"",null,null,null,null,null,""]
[null,null,null,null,null,null,null,null,null,null,null,"",null,null,"",null,null,null,null,null,""]
[null,null,null,null,null,null,null,null,null,null,null,"",null,null,"",null,null,null,null,null,""]
[null,null,null,null,null,null,null,null,null,null,null,"",null,null,"",null,null,null,null,null,""]
[null,null,null,null,null,null,null,null,null,null,null,"",null,null,"",null,null,null,null,null,""]
[null,null,null,null,null,null,null,null,null,null,null,"",null,null,"",null,null,null,null,null,""]
[null,null,null,null,null,null,null,null,null,null,null,"",null,null,"",null,null,null,null,null,""]
[null,null,null,null,null,null,null,null,null,null,null,"",null,null,"",null,null,null,null,null,""]
[null,null,null,null,null,null,null,null,null,null,null,"",null,null,"",null,null,null,null,null,""]
[null,null,null,null,null,null,null,null,null,null,null,"",null,null,"",null,null,null,null,null,""]
[null,null,null,null,null,null,null,null,null,null,null,"",null,null,"",null,null,null,null,null,""]
[null,null,null,null,null,null,null,null,null,null,null,"",null,null,"",null,null,null,null,null,""]
[null,null,null,null,null,null,null,null,null,null,null,"",null,null,"",null,null,null,null,null,""]
[null,null,null,null,null,null,null,null,null,null,null,"",null,null,"",null,null,null,null,null,""]
[null,null,null,null,null,null,null,null,null,null,null,"",null,null,"",null,null,null,null,null,""]
[null,null,null,null,null,null,null,null,null,null,null,"",null,null,"",null,null,null,null,null,""]
[null,null,null,null,null,null,null,null,null,null,null,"",null,null,"",null,null,null,null,null,""]
[null,null,null,null,null,null,null,null,null,null,null,"",null,null,"",null,null,null,null,null,""]
[null,null,null,null,null,null,null,null,null,null,null,"",null,null,"",null,null,null,null,null,""]
[null,null,null,null,null,null,null,null,null,null,null,"",null,null,"",null,null,null,null,null,""]
[null,null,null,null,null,null,null,null,null,null,null,"",null,null,"",null,null,null,null,null,""]
[null,null,null,null,null,null,null,null,null,null,null,"",null,null,"",null,null,null,null,null,""]
[null,null,null,null,null,null,null,null,null,null,null,"",null,null,"",null,null,null,null,null,""]
[null,null,null,null,null,null,null,null,null,null,null,"",null,null,"",null,null,null,null,null,""]
[null,null,null,null,null,null,null,null,null,null,null,"",null,null,"",null,null,null,null,null,""]
[null,null,null,null,null,null,null,null,null,null,null,"",null,null,"",null,null,null,null,null,""]
[null,null,null,null,null,null,null,null,null,null,null,"",null,null,"",null,null,null,null,null,""]
[null,null,null,null,null,null,null,null,null,null,null,"",null,null,"",null,null,null,null,null,""]
[null,null,null,null,null,null,null,null,null,null,null,"",null,null,"",null,null,null,null,null,""]
[null,null,null,null,null,null,null,null,null,null,null,"",null,null,"",null,null,null,null,null,""]
[null,null,null,null,null,null,null,null,null,null,null,"",null,null,"",null,null,null,null,null,""]
[null,null,null,null,null,null,null,null,null,null,null,"",null,null,"",null,null,null,null,null,""]
[null,null,null,null,null,null,null,null,null,null,null,"",null,null,"",null,null,null,null,null,""]
[null,null,null,null,null,null,null,null,null,null,null,"",null,null,"",null,null,null,null,null,""]
[null,null,null,null,null,null,null,null,null,null,null,"",null,null,"",null,null,null,null,null,""]
[null,null,null,null,null,null,null,null,null,null,null,"",null,null,"",null,null,null,null,null,""]
[null,null,null,null,null,null,null,null,null,null,null,"",null,null,"",null,null,null,null,null,""]
[null,null,null,null,null,null,null,null,null,null,null,"",null,null,"",null,null,null,null,null,""]
[null,null,null,null,null,null,null,null,null,null,null,"",null,null,"",null,null,null,null,null,""]
[null,null,null,null,null,null,null,null,null,null,null,{"$f":"CalculeDelai(B1158, K1158, J1158)","v":""},null,null,{"$f":"CalculeDUA(B1158, N1158, M1158)","v":""},null,null,null,null,null,{"$f":"CalculeDureeClassif(B1158, T1158, S1158)","v":""}]
[null,null,null,null,null,null,null,null,null,null,null,"",null,null,"",null,null,null,null,null,""]
[null,null,null,null,null,null,null,null,null,null,null,"",null,null,"",null,null,null,null,null,""]
[null,null,null,null,null,null,null,null,null,null,null,"",null,null,"",null,null,null,null,null,""]
[null,null,null,null,null,null,null,null,null,null,null,"",null,null,"",null,null,null,null,null,""]
[null,null,null,null,null,null,null,null,null,null,null,"",null,null,"",null,null,null,null,null,""]
[null,null,null,null,null,null,null,null,null,null,null,"",null,null,"",null,null,null,null,null,""]
[null,null,null,null,null,null,null,null,null,null,null,"",null,null,"",null,null,null,null,null,""]
[null,null,null,null,null,null,null,null,null,null,null,"",null,null,"",null,null,null,null,null,""]
[null,null,null,null,null,null,null,null,null,null,null,"",null,null,"",null,null,null,null,null,""]
[null,null,null,null,null,null,null,null,null,null,null,"",null,null,"",null,null,null,null,null,""]
[null,null,null,null,null,null,null,null,null,null,null,"",null,null,"",null,null,null,null,null,""]
[null,null,null,null,null,null,null,null,null,null,null,"",null,null,"",null,null,null,null,null,""]
[null,null,null,null,null,null,null,null,null,null,null,"",null,null,"",null,null,null,null,null,""]
[null,null,null,null,null,null,null,null,null,null,null,"",null,null,"",null,null,null,null,null,""]
[null,null,null,null,null,null,null,null,null,null,null,"",null,null,"",null,null,null,null,null,""]
[null,null,null,null,null,null,null,null,null,null,null,"",null,null,"",null,null,null,null,null,""]
[null,null,null,null,null,null,null,null,null,null,null,"",null,null,"",null,null,null,null,null,""]
[null,null,null,null,null,null,null,null,null,null,null,"",null,null,"",null,null,null,null,null,""]
[null,null,null,null,null,null,null,null,null,null,null,"",null,null,"",null,null,null,null,null,""]
[null,null,null,null,null,null,null,null,null,null,null,"",null,null,"",null,null,null,null,null,""]
[null,null,null,null,null,null,null,null,null,null,null,"",null,null,"",null,null,null,null,null,""]
[null,null,null,null,null,null,null,null,null,null,null,"",null,null,"",null,null,null,null,null,""]
[null,null,null,null,null,null,null,null,null,null,null,"",null,null,"",null,null,null,null,null,""]
[null,null,null,null,null,null,null,null,null,null,null,"",null,null,"",null,null,null,null,null,""]
[null,null,null,null,null,null,null,null,null,null,null,"",null,null,"",null,null,null,null,null,""]
[null,null,null,null,null,null,null,null,null,null,null,"",null,null,"",null,null,null,null,null,""]
[null,null,null,null,null,null,null,null,null,null,null,"",null,null,"",null,null,null,null,null,""]
[null,null,null,null,null,null,null,null,null,null,null,"",null,null,"",null,null,null,null,null,""]
[null,null,null,null,null,null,null,null,null,null,null,"",null,null,"",null,null,null,null,null,""]
[null,null,null,null,null,null,null,null,null,null,null,"",null,null,"",null,null,null,null,null,""]
[null,null,null,null,null,null,null,null,null,null,null,"",null,null,"",null,null,null,null,null,""]
[null,null,null,null,null,null,null,null,null,null,null,"",null,null,"",null,null,null,null,null,""]
[null,null,null,null,null,null,null,null,null,null,null,"",null,null,"",null,null,null,null,null,""]
[null,null,null,null,null,null,null,null,null,null,null,"",null,null,"",null,null,null,null,null,""]
[null,null,null,null,null,null,null,null,null,null,null,"",null,null,"",null,null,null,null,null,""]
[null,null,null,null,null,null,null,null,null,null,null,"",null,null,"",null,null,null,null,null,""]
[null,null,null,null,null,null,null,null,null,null,null,"",null,null,"",null,null,null,null,null,""]
[null,null,null,null,null,null,null,null,null,null,null,"",null,null,"",null,null,null,null,null,""]
[null,null,null,null,null,null,null,null,null,null,null,"",null,null,"",null,null,null,null,null,""]
[null,null,null,null,null,null,null,null,null,null,null,"",null,null,"",null,null,null,null,null,""]
[null,null,null,null,null,null,null,null,null,null,null,"",null,null,"",null,null,null,null,null,""]
[null,null,null,null,null,null,null,null,null,null,null,"",null,null,"",null,null,null,null,null,""]
[null,null,null,null,null,null,null,null,null,null,null,"",null,null,"",null,null,null,null,null,""]
[null,null,null,null,null,null,null,null,null,null,null,"",null,null,"",null,null,null,null,null,""]
[null,null,null,null,null,null,null,null,null,null,null,"",null,null,"",null,null,null,null,null,""]
[null,null,null,null,null,null,null,null,null,null,null,"",null,null,"",null,null,null,null,null,""]
[null,null,null,null,null,null,null,null,null,null,null,"",null,null,"",null,null,null,null,null,""]
[null,null,null,null,null,null,null,null,null,null,null,"",null,null,"",null,null,null,null,null,""]

{"sheet":"Explication du contenu","index":2,"n_rows":14,"n_cols":39,"rows_kept":14,"cut":false,"hidden":false,"merged":[[13,3,13,4],[3,3,3,4],[9,3,9,4],[10,3,10,4],[11,3,11,4],[12,3,12,4],[4,3,4,4],[5,3,5,4],[7,3,7,4],[8,3,8,4]]}
[null,null,null,null,null,null,null,null,null,null,null,null,null,null,null,null,null,null,null,null,null,null,null,null,null,null,null,null,null,null,null,null,null,null,null,null,"immédiat","2 ans","D"]
[null,null,null,null,null,null,null,null,null,null,null,null,null,null,null,null,null,null,null,null,null,null,null,null,null,null,null,null,null,null,null,null,null,null,null,null,"30 ans","5 ans","C"]
[null,null,null,null,null,null,null,null,null,null,null,null,null,null,null,null,null,null,null,null,null,null,null,null,null,null,null,null,null,null,null,null,null,null,null,null,"60 ans","10 ans","T"]
[null,"Explication du contenu des colonnes","Contrôle éventuel","Exemple de données",null,null,null,null,null,null,null,null,null,null,null,null,null,null,null,null,null,null,null,null,null,null,null,null,null,null,null,null,null,null,null,null,"100 ans","20 ans"]
["(1) :","N° de l'article ou de la boîte","Aucun",1,null,null,null,null,null,null,null,null,null,null,null,null,null,null,null,null,null,null,null,null,null,null,null,null,null,null,null,null,null,null,null,null,"120 ans","30 ans"]
["(2) :","Désignation sommaire des documents","Aucun","Dossier de demande",null,null,null,null,null,null,null,null,null,null,null,null,null,null,null,null,null,null,null,null,null,null,null,null,null,null,null,null,null,null,null,null,"150 ans","40 ans"]
["(3) :","Dates extrêmes : date d'ouverture et de clôture de la liasse, de la boîte, date la plus ancienne et date la plus récente figurant dans le registre","Aucun",1998,2000,null,null,null,null,null,null,null,null,null,null,null,null,null,null,null,null,null,null,null,null,null,null,null,null,null,null,null,null,null,null,null,null,"50 ans"]
["(4) :","Durée d'Utilité Administrative (D.U.A), s'exprime en nombre d'années, représente la période pendant laquelle il est impossible de détruire les documents. Calculée en fonction de la durée de conservation légale, augmentée, le cas échéant, du temps pendant lequel les documents conservent une valeur informative pour l'administration. Cette colonne doit être remplie en collaboration avec le service des Archives.","Combo","10 ANS"]
["(5) :","Délai de communicabilité : à remplir par le service versant dans les deux cas suivants : lorsque les documents sont communicables imédiatement, en vertu de la loi n°78-753 du 17 juillet 1978 (mettre la lettre \"I\"), lorsque les documents sont soumis à un délai de 60 ans en application du décret n°79-1038 du 3 décembre 1979 relatif à la communicabilité des archives publiques (mettre \"S\"). Dans tous les autres cas cette colonne est à remplir par le service des archives.","Combo","60 ANS"]
["(6) :","Date de communicabilité : se calcule à partir de la date du document le plus récent à partir de laquelle on ajoute le délai de communicabilité plus un.","Aucun",2061]
["(7) :","Date à laquelle doivent être triés les documents, à expiration du délai d'utilité administrative","Aucun",2003]
["(8) :","Traitement : Sort Final. Indiquer C (pour conservation définitive), D (pour destruction), T (pour échantillonage)","Combo","D"]
["(9) :","Observations éventuelles","Aucun","Texte n°23542"]
["(10) :","Numéro de ligne du tableau de gestion","Aucun",3]